Cogmind - Beta 17 @@@ ROGUE MODE // 2026.08.15 @ 17:05:58 Player: aoemica Result: Destroyed by Striker with Compact Linear Accelerator Performance ------------- Evolutions (9) 4500 Regions Visited (34) 6800 Robots Destroyed (804) 4020 Value Destroyed (38148) 38148 Prototype IDs (70) 1400 Alien Tech Used (4) 800 Bonus (24215) 24215 TOTAL SCORE: 79883 Bonus ------- Triggered High Security 1000 High Alert Combat Kills 9270 Follower Combat Kills 2787 Network Hubs Disabled 200 Met Imprinter 300 Was Imprinted 300 Met Zhirov 300 Met Warlord at Base 500 MAIN.C Attacked Warlord 500 Warlord Defense Kills 2952 Built Enhanced Grunts 300 A7 Reached Mainframe 300 Met R17 at Cetus 500 Found Hidden Lab 3000 Used Core Reset Matrix 3000 Scanned by Researcher 500 Pursued by Intercept 500 Friendly Fire -1994 Cogmind --------- Core Integrity 0/1600 Matter 300/300 Energy 99/100 System Corruption 27% Temperature Cool (9) Movement Core (50) Location -1/Command Parts ------- > --- POWER (3) -------- (None) > --- PROPULSION (2) --- (None) > --- UTILITY (12) ----- Advanced Salvage Targeting Computer Experimental Core Analyzer > --- WEAPON (8) ------- (None) > --- INVENTORY (5) ---- Experimental Matter Compressor (229) Seismic Detector Advanced Point Defense System Potential Cannon Peak State ------------ > --- POWER ------------ Micro Antimatter Reactor Cooled Antimatter Reactor Light Quantum Reactor > --- PROPULSION ------- Centrium Wheel Centrium Wheel > --- UTILITY ---------- Huge Storage Unit Experimental Optical Array Experimental Terrain Scanner Advanced Terrain Scan Processor 0b10 Decoder Chip [Skirmisher] Experimental Targeting Computer Experimental Core Analyzer Advanced Weapon Cycler Experimental Cloaking Device Medium Regenerative Plating Advanced Force Field System Mapper > --- WEAPON ----------- Enhanced Coil Gun Enhanced Coil Gun Enhanced Coil Gun Advanced KE Penetrator Hypervelocity Railgun Hypervelocity Railgun Hypervelocity Railgun Hypervelocity Railgun > --- INVENTORY -------- Micro Antimatter Reactor Armored Medium Treads Armored Medium Treads Biometal Heavy Treads Centrium Wheel Experimental Heat Sink Experimental Matter Compressor Advanced Kinecellerator Makeshift Transmission Jammer Graphene Brace Improved Focal Shield Improved Shock Absorption System Advanced Point Defense System System Mapper Long-range Tractor Beam Mobile Refinery Mk. CCLXVII Minesniffer Drone Bay Transdimensional Reconstructor Transdimensional Reconstructor Enhanced Nova Cannon Potential Cannon KE Penetrator KE Penetrator [Rating: 206] Favorites ----------- Power Quantum Reactor Engine Cooled Ion Engine Power Core Light Nuclear Core Reactor Quantum Reactor Propulsion Improved Medium Treads Treads Improved Medium Treads Leg Aluminum Leg Wheel Centrium Wheel Utility Huge Storage Unit Device Advanced Heat Sink Storage Huge Storage Unit Processor Experimental Targeting Computer Hackware Hacking Suite Protection Medium Regenerative Plating Weapon Improved Assault Rifle Energy Gun Plasma Rifle Energy Cannon Enhanced Nova Cannon Ballistic Gun Improved Assault Rifle Ballistic Cannon Heavy Gauss Cannon Launcher Heavy Shock Bomb Launcher Impact Weapon Mace Piercing Weapon CR-A16's Pointy Stick Special Melee Weapon Datajack Build | -11 -10 -10 -9 -9 -8 -7 -7 -7 -7 -6 -6 -6 -6 -6 -6 -5 -5 -5 -5 -4 -4 -4 -4 -4 -4 -4 -3 -3 -3 -3 -2 -2 -1 -1 ------- Run | Yrd Mat Min Mat Sto Mat Fac Low Low Zio Pro Fac Ext Cet Arc Hub Fac Upp Upp War Pro Fac Was Fac Upp Upp Zhi Pro Res Arm Lab Res Tes Acc Com Slots Evolved 18 | . . . 2 . 2 2 . . . . 2 . . . . 2 . . . . 2 . . . . . . 2 . . 2 . 2 . Power 2 | . . . . . . . . . . . . . . . . 1 . . . . . . . . . . . 1 . . . . . . Propulsion . | . . . . . . . . . . . . . . . . . . . . . . . . . . . . . . . . . . . Utility 10 | . . . 1 . . 2 . . . . 1 . . . . 1 . . . . 2 . . . . . . . . . 2 . 1 . Weapon 6 | . . . 1 . 2 . . . . . 1 . . . . . . . . . . . . . . . . 1 . . . . 1 . Parts Attached 378 | 1 15 2 26 15 8 23 4 5 3 7 6 6 4 6 9 9 5 4 23 1 16 10 20 9 6 3 12 18 28 6 4 12 27 25 Power 55 | . 2 . 2 1 . 3 . 1 . 1 2 2 . . 1 2 . . 1 . 3 3 2 1 2 1 . 3 6 . 1 4 6 5 Engine 10 | . 2 . 2 1 . 1 . 1 . . 1 1 . . . . . . . . . . . . . . . 1 . . . . . . Core 11 | . . . . . . 2 . . . 1 1 1 . . 1 1 . . . . 1 . . 1 1 . . 1 . . . . . . Reactor 34 | . . . . . . . . . . . . . . . . 1 . . 1 . 2 3 2 . 1 1 . 1 6 . 1 4 6 5 Propulsion 62 | . 8 . 8 4 4 5 2 1 . 5 . 1 . . 1 1 . . 2 1 1 4 2 1 . . 1 6 2 . . 1 . 1 Treads 50 | . 2 . 8 4 4 5 2 1 . 5 . 1 . . 1 1 . . 2 1 . 4 2 1 . . 1 2 2 . . 1 . . Leg 7 | . 6 . . . . . . . . . . . . . . . . . . . . . . . . . . . . . . . . 1 Wheel 5 | . . . . . . . . . . . . . . . . . . . . . 1 . . . . . . 4 . . . . . . Hover . | . . . . . . . . . . . . . . . . . . . . . . . . . . . . . . . . . . . Flight . | . . . . . . . . . . . . . . . . . . . . . . . . . . . . . . . . . . . Utility 109 | 1 1 . 6 1 1 8 1 . 1 . 2 1 2 4 5 1 5 2 12 . 7 1 5 2 . 1 3 4 8 4 3 2 9 6 Device 69 | 1 . . 3 1 . 4 . . 1 . 2 . 1 4 3 1 2 2 7 . 5 1 4 1 . . 2 1 7 2 2 . 7 5 Storage 10 | . 1 . 1 . . 2 . . . . . . . . . . 1 . 2 . . . 1 . . 1 . . . . . 1 . . Processor 14 | . . . . . 1 2 1 . . . . . . . 1 . . . 3 . 1 . . 1 . . . 2 . . . . 1 1 Hackware 6 | . . . 1 . . . . . . . . 1 . . . . . . . . 1 . . . . . . . 1 1 . 1 . . Protection 10 | . . . 1 . . . . . . . . . 1 . 1 . 2 . . . . . . . . . 1 1 . 1 1 . 1 . Artifact . | . . . . . . . . . . . . . . . . . . . . . . . . . . . . . . . . . . . Weapon 152 | . 4 2 10 9 3 7 1 3 2 1 2 2 2 2 2 5 . 2 8 . 5 2 11 5 4 1 8 5 12 2 . 5 12 13 Energy Gun 18 | . 2 1 . . . . . . . . . . 1 . . . . . 2 . . . . 3 2 1 . . . 2 . . . 4 Energy Cannon 5 | . . . . 1 . . . . . . . . . . . . . . 1 . . . . . . . . . 1 . . . 2 . Ballistic Gun 116 | . . . 9 7 3 6 1 3 1 1 2 1 1 2 2 5 . 2 5 . 5 2 11 1 . . 7 5 10 . . 5 10 9 Ballistic Cannon 4 | . . 1 . . . . . . . . . . . . . . . . . . . . . . 2 . 1 . . . . . . . Launcher 6 | . 1 . . 1 . 1 . . . . . 1 . . . . . . . . . . . 1 . . . . 1 . . . . . Special Weapon . | . . . . . . . . . . . . . . . . . . . . . . . . . . . . . . . . . . . Impact Weapon 1 | . . . 1 . . . . . . . . . . . . . . . . . . . . . . . . . . . . . . . Slashing Weapon . | . . . . . . . . . . . . . . . . . . . . . . . . . . . . . . . . . . . Piercing Weapon 1 | . . . . . . . . . 1 . . . . . . . . . . . . . . . . . . . . . . . . . Special Melee Weapon 1 | . 1 . . . . . . . . . . . . . . . . . . . . . . . . . . . . . . . . . Unidentified Prototypes 48 | . . . 1 1 . 1 . . 1 . . . 3 . 4 1 3 . 10 . 1 . . . . 3 . . 6 8 1 1 3 . Corrupted Parts 9 | . . . . . . . . . . . . . . 2 . . . . . . . . . . . . 7 . . . . . . . System Corruption 63 | . . . . . . . . . . . . . . 5 . . . . . . . . . . . . 58 . . . . . . . Parts Lost 90 | . . . 1 . . 4 2 4 . . . . . . 1 . 1 1 8 1 2 . 19 8 1 . 1 1 . . . 3 4 28 Power 11 | . . . . . . . 1 . . . . . . . 1 . . . . 1 1 . 1 2 . . . 1 . . . . . 3 Propulsion 10 | . . . . . . 1 . . . . . . . . . . . . 2 . . . 2 . . . 1 . . . . . . 4 Utility 25 | . . . 1 . . 2 . 1 . . . . . . . . 1 1 1 . 1 . 6 . . . . . . . . . 3 8 Weapon 44 | . . . . . . 1 1 3 . . . . . . . . . . 5 . . . 10 6 1 . . . . . . 3 1 13 Highest Loss Streak 18 | . . . 1 . . 1 1 3 . . . . . . 1 . 1 1 4 1 1 . 8 6 1 . 1 1 . . . 1 2 18 To Critical Strikes 2 | . . . . . . . . . . . . . . . . . . . 1 . . . . . 1 . . . . . . . . . Average Backups 23 | 6 9 10 18 20 19 23 24 22 24 25 24 24 24 24 24 24 25 24 24 24 23 23 21 23 24 25 24 24 24 24 23 23 22 22 Power . | 1 . . . . . . . . . . . . . . . . 1 1 . . . . 1 1 1 1 . . . . . . 1 . Propulsion 4 | 4 2 2 6 6 4 3 4 4 5 5 6 6 6 6 5 3 3 3 3 3 4 4 3 3 2 2 1 4 5 4 5 4 4 3 Utility 11 | . 3 4 5 7 7 9 12 11 11 11 9 9 9 9 11 13 14 13 14 17 14 14 12 12 14 14 14 13 12 12 11 10 10 10 Weapon 6 | 1 1 3 5 6 5 8 7 5 6 7 8 9 9 9 8 7 7 7 6 4 4 4 4 5 7 7 7 6 6 5 6 5 5 5 Tool/Special . | . . . . . . . . . . . . . . . . . . . . . . . . . . . . . . . . . . . Unused Backups 64 | . 6 . 6 . 1 4 . . . . 4 1 3 . 1 . . . 3 . 3 1 1 2 4 . 1 5 4 1 . 1 . 12 Power 9 | . 1 . . . . . . . . . . 1 . . . . . . . . 1 . . . . . 1 . . . . . . 5 Propulsion 17 | . 4 . 2 . . . . . . . . . . . 1 . . . . . 2 1 1 1 1 . . 3 . . . . . 1 Utility 17 | . 1 . 1 . 1 2 . . . . 1 . 1 . . . . . 1 . . . . . 2 . . 2 2 . . 1 . 2 Weapon 18 | . . . 3 . . 2 . . . . 2 . 2 . . . . . 2 . . . . 1 1 . . . 2 . . . . 3 Tool/Special 3 | . . . . . . . . . . . 1 . . . . . . . . . . . . . . . . . . 1 . . . 1 Average Slot Usage (%) 97 | . 100 100 98 99 99 99 93 99 100 100 99 100 99 99 99 99 99 100 96 92 92 94 91 89 93 95 96 93 99 99 99 99 98 96 Engine 2 | . 14 14 10 11 9 5 1 6 7 2 4 . . . . . . . . . . . . . . . . . . . . . . . Core 1 | . . . . . . 1 . . . 4 1 5 6 6 5 5 5 5 4 3 4 . . . . 5 5 3 . . . . . . Reactor 4 | . . . . . . . . . . . . . . . . 5 5 5 3 1 4 10 9 7 8 5 5 6 13 14 13 13 12 11 Treads 10 | . 1 28 22 21 18 14 15 15 15 15 13 13 13 13 13 11 10 11 10 10 5 5 5 9 10 10 10 3 1 3 . . . . Wheel 1 | . . . . . . . . . . . . . . . . . . . . . . . . . . . . 5 7 5 7 7 7 7 Device 14 | . 14 14 10 11 8 6 7 11 15 15 19 19 20 19 19 15 11 16 16 17 20 21 18 16 15 14 11 13 12 13 18 17 17 19 Storage 6 | . 14 14 11 11 9 7 7 7 7 7 6 6 6 6 6 5 5 5 5 5 5 5 5 5 5 5 5 4 4 4 4 4 4 4 Processor 16 | . . . . . 1 19 23 18 15 15 13 13 13 13 13 17 17 17 17 17 19 21 21 24 26 26 22 15 23 23 21 21 17 15 Hackware 1 | . . . 8 11 9 3 . . . . . . . . . . . . . . . . . . . . . . . . . . 4 3 Energy Gun 1 | . 12 9 2 . . . . . . . . . . . . . . . 2 . . . . 7 13 11 14 . . . . . . . Ballistic Gun 31 | . 14 14 30 32 44 37 37 37 37 37 39 39 38 40 39 34 34 35 32 35 30 31 29 16 5 5 5 32 32 32 30 29 31 29 Peak Build Rating 206 | 7 8 8 22 26 34 55 56 60 60 57 68 68 77 79 83 101 97 103 128 126 144 143 135 132 130 125 131 145 167 168 188 189 206 193 Average Rating 91 | 6 7 8 16 23 30 47 55 57 55 54 63 66 72 77 76 96 96 99 109 116 134 139 125 116 119 119 127 138 162 162 183 182 194 180 On Entrance 90 | 6 7 8 8 22 24 34 55 55 56 54 57 65 66 73 78 82 96 97 103 126 119 133 130 114 101 117 125 125 144 164 166 181 186 187 Avg Prop Armor Cover (%) 33 | . . . . . . . . . . . . . . . . . . . . . . . . . . . . . . . . . . 33 Naked Turns . | . . . . . . . . . . . . . . . . . . . . . . . . . . . . . . . . . . . Heaviest Build 212 | 13 20 20 58 59 64 113 113 113 112 113 116 117 116 117 117 140 136 141 172 152 150 152 157 145 154 139 163 186 202 195 207 207 201 212 Greatest Support 80 | 20 40 40 40 40 40 40 60 60 60 60 58 60 60 60 60 48 48 48 56 75 75 75 70 54 54 54 54 62 80 54 54 75 54 54 Greatest Overweight (x) 12 | . . . 1 1 1 5 2 1 1 2 1 2 1 1 2 2 2 2 3 3 8 2 2 2 2 2 3 10 11 6 6 12 6 12 Average Overweight (x) 2 | . . . . 1 1 1 1 1 1 1 1 1 1 1 1 2 2 2 2 2 1 1 1 1 1 2 2 4 5 4 5 5 5 4 Largest Inventory Capacity 25 | 8 10 10 20 20 20 25 25 25 25 25 25 25 25 25 25 25 25 25 25 25 25 25 25 25 25 25 25 25 25 25 25 25 25 25 Average Capacity 23 | 8 9 10 19 20 20 23 25 25 25 25 25 25 25 25 25 25 25 25 25 25 25 25 25 25 25 25 25 25 25 25 25 25 25 24 Most Carried 25 | 7 10 10 20 20 20 25 25 24 25 25 25 25 25 25 25 25 25 25 25 25 25 25 25 25 25 25 25 25 25 25 25 25 25 25 Average Carried 23 | 6 9 10 18 20 19 23 24 22 24 24 24 24 24 24 24 24 24 24 24 24 24 24 22 23 24 24 24 24 24 24 24 24 24 24 Final Capacity 25 | 8 10 10 20 20 20 25 25 25 25 25 25 25 25 25 25 25 25 25 25 25 25 25 25 25 25 25 25 25 25 25 25 25 25 5 Final Carried 25 | 7 10 10 20 20 20 25 24 22 25 25 25 25 25 25 25 25 25 25 25 25 25 25 17 24 25 25 25 25 25 25 25 24 25 5 Class Distribution -------------------- 44% | Scavenger-Executioner 12% | Gunner 11% | Skirmisher 8% | Commander-Executioner 7% | Scavenger-Gunner Dominant Class ---------------- Mutant | -10/Materials Scavenger-Mutant | -10/Mines Scavenger-Gunner | -9/Materials Scavenger-Gunner | -9/Storage Commander-Gunner | -8/Materials Gunner | -7/Factory Gunner | -7/Lower Caves Skirmisher | -7/Lower Caves Skirmisher | -7/Zion Skirmisher | -6/Proximity Caves Scientist-Executioner | -6/Factory Commander-Executioner | -6/Extension Commander-Executioner | -6/Cetus Commander-Executioner | -6/Archives Commander-Executioner | -6/Hub_04(d) Scavenger-Executioner | -5/Factory Scavenger-Executioner | -5/Upper Caves Scavenger-Executioner | -5/Upper Caves Scavenger-Executioner | -5/Warlord Scavenger-Executioner | -4/Proximity Caves Scavenger-Executioner | -4/Factory Scavenger-Executioner | -4/Waste Scavenger-Executioner | -4/Factory Scavenger-Gunner | -4/Upper Caves Scavenger-Executioner | -4/Upper Caves Scavenger-Executioner | -4/Zhirov Scavenger-Executioner | -3/Proximity Caves Scavenger-Executioner | -3/Research Scavenger-Executioner | -3/Armory Scavenger-Executioner | -3/Lab Scavenger-Executioner | -2/Research Scavenger-Executioner | -2/Testing Scavenger-Executioner | -1/Access Scavenger-Executioner | -1/Command Resources | -11 -10 -10 -9 -9 -8 -7 -7 -7 -7 -6 -6 -6 -6 -6 -6 -5 -5 -5 -5 -4 -4 -4 -4 -4 -4 -4 -3 -3 -3 -3 -2 -2 -1 -1 ----------- Run | Yrd Mat Min Mat Sto Mat Fac Low Low Zio Pro Fac Ext Cet Arc Hub Fac Upp Upp War Pro Fac Was Fac Upp Upp Zhi Pro Res Arm Lab Res Tes Acc Com Matter Collected 37341 | 254 212 137 965 880 242 2751 723 494 50 248 525 665 320 307 625 288 570 353 1290 529 2242 538 2764 456 332 250 372 2160 2617 692 1425 2835 2422 5808 Remotely 10564 | . . . . . . . . . . . . . . . . . 180 . 364 90 806 . 1900 . . . . 859 1164 . 1072 1322 1245 1562 Salvage Created 46664 | 167 579 122 1549 1671 212 3713 925 707 . 302 1032 1074 183 195 1704 520 567 281 1163 651 2601 1704 5287 837 630 . 233 2291 2442 84 1913 3678 2209 5438 Parts 2289 | 18 38 11 80 107 18 178 30 36 . 12 51 37 5 17 91 30 20 21 51 31 114 30 249 26 32 . 12 119 142 5 100 176 121 281 Haulers Intercepted 29 | . 2 . 5 4 1 7 . . . . 1 . . . 2 . . . . . 2 . 1 . . . . 1 . . . 1 2 . Recyclers Shooed 15 | . . . 2 1 . . . . . . . . . . . . . . . . 1 . 6 . . . . 1 . . . . 2 2 Parts Field Recycled . | . . . . . . . . . . . . . . . . . . . . . . . . . . . . . . . . . . . Retrieved Matter . | . . . . . . . . . . . . . . . . . . . . . . . . . . . . . . . . . . . Parts Self-Destructed 195 | . . . . . . . 32 31 2 25 . . . . . . 20 21 . 31 . . . 11 16 . 6 . . . . . . . Prevented 40 | . . . . . . . 1 . . 5 . . . . . . . . . . . . . 12 13 . 9 . . . . . . . Parts Restored . | . . . . . . . . . . . . . . . . . . . . . . . . . . . . . . . . . . . Kills | -11 -10 -10 -9 -9 -8 -7 -7 -7 -7 -6 -6 -6 -6 -6 -6 -5 -5 -5 -5 -4 -4 -4 -4 -4 -4 -4 -3 -3 -3 -3 -2 -2 -1 -1 ------- Run | Yrd Mat Min Mat Sto Mat Fac Low Low Zio Pro Fac Ext Cet Arc Hub Fac Upp Upp War Pro Fac Was Fac Upp Upp Zhi Pro Res Arm Lab Res Tes Acc Com Combat Hostiles Destroyed 595 | . 12 8 26 30 2 55 11 14 . 5 9 18 3 1 11 5 12 7 23 12 27 6 53 14 12 . 5 23 33 1 26 41 35 55 Melee 1 | . . . . . . . . . . 1 . . . . . . . . . . . . . . . . . . . . . . . . Guns 566 | . 12 2 26 30 2 53 11 14 . 4 9 18 3 1 11 5 12 7 20 12 25 6 52 9 7 . 2 23 33 1 26 40 35 55 AOE 20 | . . 6 . . . 2 . . . . . . . . . . . . 3 . 2 . 1 2 2 . 1 . . . . 1 . . Classes Destroyed 27 | 2 6 . 3 1 . 2 2 . . 1 1 . . . 4 . . . 2 . 1 1 . . . . . . . . . 1 . . Worker 40 | . 2 . . . . 2 . . . . 3 . . . 9 1 . . . . 1 . 12 . . . . 1 . . . 2 1 6 Builder 31 | . . . . . . . . . . . 1 1 . . 4 . . . . . . . 13 . . . . 5 . . 1 5 1 . Tunneler 9 | 5 1 . . . . . . . . . 1 . . . . . . . . . . . . . . . . 1 . . 1 . . . Hauler 29 | . 2 . 5 4 1 7 . . . . 1 . . . 2 . . . . . 2 . 1 . . . . 1 . . . 1 2 . Recycler 34 | 1 . . 1 2 1 6 . . . . 2 . . . . 2 . . . . 3 . 7 . . . . 2 . . . 1 1 5 Minesweeper 2 | . . . . . . . 2 . . . . . . . . . . . . . . . . . . . . . . . . . . . Mechanic 6 | . . . 2 . . 2 . . . . . . . . . . . . . . 1 . . . . . . . . . . 1 . . Operator 15 | . 2 . . 2 . 1 . . . . 1 . . 4 1 . . . . . . . 2 . . . . . 1 . . 1 . . Drone 3 | . . . . . . . . . . 1 . . . . . . . . . . . . . . . . 2 . . . . . . . Watcher 30 | . 2 . 2 2 1 4 . . . . 2 2 . . 1 . . . . . 2 . 1 . . . . 2 1 . 1 2 1 4 Swarmer 101 | . 6 6 2 4 . 8 1 5 . . 1 2 . . 3 . 5 4 7 5 . . . . 5 . . . . . 5 . 21 11 Saboteur 6 | . . . . . . . . . . . . . . . 1 . . . . . . . . . . . . . 3 . . 1 1 . Grunt 217 | . 6 2 15 17 1 27 6 5 . 3 4 9 . . 1 . 4 . 5 5 11 . 27 8 5 . . 4 3 . 10 18 3 18 Brawler 19 | . . . . 1 . 4 . 1 . . 1 . . . . . 1 . 1 . . . 2 . . . . . . . . 1 1 6 Duelist 24 | . . . 1 1 . 1 2 1 . . . . . . . . . . . . . . 1 1 . . . . 8 . 1 3 1 3 Protector 7 | . . . . . . 1 . . . . . . . . . . . . 1 . . . . . . . . . 2 . . 2 . 1 Researcher 1 | . . . . . . . . . . . . . . . . . . . . . . . . . . . . . . . . 1 . . Sentry 56 | . . . 8 7 1 7 1 1 . . 2 5 . 1 1 1 1 . . 1 5 . 3 1 . . . 3 2 . 1 . 1 3 Specialist 13 | . . . . . . . . . . . . . . . . . . . . . 2 . . . . . . 2 7 . 2 . . . Hunter 42 | . . . . . . . . . . . . . . . . 2 1 3 . . 4 . 12 4 . . 2 6 . . 2 3 . 3 Programmer 76 | . . . . . . 7 . . . . 1 . . . 1 2 . . 4 . 5 . 7 . 2 . 1 7 9 . 5 9 7 9 Heavy 3 | . . . . . . . . . . . . . . . 1 . . . . . . . 1 . . . . 1 . . . . . . Behemoth 5 | . . . . . . . 1 1 . 1 . 1 . . . . . . . 1 . . . . . . . . . . . . . . Compactor 6 | . . . . . . . . . . . . . . . . . . . . . . 6 . . . . . . . . . . . . Cetus Guard 3 | . . . . . . . . . . . . . 3 . . . . . . . . . . . . . . . . . . . . . Enhanced Grunt 2 | . . . . . . . . . . . . . . . 2 . . . . . . . . . . . . . . . . . . . Lightning 3 | . . . . . . . . . . . . . . . 3 . . . . . . . . . . . . . . . . . . . Tracker 2 | . . . . . . . . . . . . . . . . . . . . . . . . . . . . . . . . 2 . . Combat Programmer 3 | . . . . . . . . . . . . . . . . . . . . . . . . . . . . . . . . 2 . 1 Striker 2 | . . . . . . . . . . . . . . . . . . . 2 . . . . . . . . . . . . . . . Executioner 3 | . . . . . . . . . . . . . . . . . . . 3 . . . . . . . . . . . . . . . Decomposer 2 | . . . . . . . 1 . . . . . . . . . 1 . . . . . . . . . . . . . . . . . Thug 5 | . . . . . . . . 1 . . . . . . 4 . . . . . . . . . . . . . . . . . . . Savage 1 | . . . . . . . . . . . . 1 . . . . . . . . . . . . . . . . . . . . . . Guerrilla 1 | . . . . . . . . . . . . . . . 1 . . . . . . . . . . . . . . . . . . . Wizard 1 | . . . . . . . . . . . . . . . . . . . . . . . . . . . . . 1 . . . . . Fireman 2 | . . . . . . . . . . . . . . . 2 . . . . . . . . . . . . . . . . . . . Best Kill Streak 20 | 4 5 3 4 8 1 9 4 7 . 2 3 4 2 2 20 2 4 4 8 4 6 2 16 6 5 . 2 7 11 1 7 15 9 9 Combat Bots Only 11 | . 3 3 4 7 1 5 4 7 . 2 3 3 2 1 5 2 4 4 8 4 5 2 10 6 5 . 2 4 11 1 6 10 9 8 Max Kills in Single Turn 14 | 1 1 2 2 2 1 6 2 1 . 1 3 2 1 1 14 2 2 3 5 3 2 2 5 1 2 . 1 2 2 1 3 3 3 3 Gunslinging 2 | . . . 1 1 . 1 1 . . . . 1 . . 1 . 1 2 1 1 1 . 1 . 1 . . 1 1 . 1 1 1 1 Exploded 3 | . . 2 . . . 2 . . . . . . . . . . . . 3 . 2 . 1 1 1 . 1 . . . . 1 . . Melee 1 | . . . . . . . . . . 1 . . . . . . . . . . . . . . . . . . . . . . . . Uniques/NPCs Destroyed 1 | . . . . . . . . . . . . . . . . . . . . . . . . . . . . . . 1 . . . . A5 (-3/Lab) Combat | -11 -10 -10 -9 -9 -8 -7 -7 -7 -7 -6 -6 -6 -6 -6 -6 -5 -5 -5 -5 -4 -4 -4 -4 -4 -4 -4 -3 -3 -3 -3 -2 -2 -1 -1 -------- Run | Yrd Mat Min Mat Sto Mat Fac Low Low Zio Pro Fac Ext Cet Arc Hub Fac Upp Upp War Pro Fac Was Fac Upp Upp Zhi Pro Res Arm Lab Res Tes Acc Com Hostile Shots Fired 2721 | . 69 18 118 81 3 284 45 63 . 1 4 83 7 . 35 10 14 34 118 45 150 . 308 114 54 . 14 168 130 4 56 173 107 411 Missed 825 | . 22 3 23 21 1 81 16 26 . . 3 36 1 . 8 3 4 13 30 9 79 . 66 42 21 . 4 75 55 1 18 29 29 106 Intercepted 14 | . . . . . . . . . . . . . . . . . . . . . . . . . . . . . . . . . . 14 Hits 1896 | . 47 15 95 60 2 203 29 37 . 1 1 47 6 . 27 7 10 21 88 36 71 . 242 72 33 . 10 93 75 3 38 144 78 305 Melee 29 | . . . 1 2 . 4 . . . . . . . . . . 1 . 2 . . . . 5 . . . . 2 . . 3 1 8 Projectile 1867 | . 47 15 94 58 2 199 29 37 . 1 1 47 6 . 27 7 9 21 86 36 71 . 242 67 33 . 10 93 73 3 38 141 77 297 AOE 11 | . . . . . . . . . . . . . . . . . . . 1 . . . . . . . . . . . . . . 10 Critical Strikes 93 | . . . 1 7 . 5 1 2 . . . . 2 . 1 . . . 4 2 2 . 14 5 3 . . . 3 . 4 13 4 20 Actively Blocked 14 | . . . . . . . . . . . . . 2 . . . . . . . . . . 3 . . . . . . . . . 9 Part Disruptions 10 | . . . . . . . . . . . . . . . . . . . 1 . . . 1 . . . . 1 1 . . 2 1 3 Damage Taken 28417 | . 503 156 1242 701 27 1958 358 430 . 52 12 424 116 . 629 150 159 251 1566 722 1203 . 4176 1387 618 . 218 897 594 38 430 1516 1428 6456 Core 3600 | . 141 38 135 81 . 230 2 38 . . . 75 . . 88 . 15 31 145 57 222 . 254 164 55 . . 62 50 . 23 66 176 1452 Absorbed by Shields 8108 | . . . 6 115 . 688 80 100 . 12 . 178 66 . 43 . 30 95 560 223 128 . 705 25 . . . 915 641 40 444 1543 69 1402 Reduced by Siege Mode 104 | . . . . . . . . . . . . . . . . . . . . . . . 104 . . . . . . . . . . . Redirected to Shielding 105 | . . . . . . . . . . . . . . . . . 13 92 . . . . . . . . . . . . . . . . Ignored by Resistances 679 | . . . . . . . . . . . . . . . . . . . . . . . . . . . . . . . . . 273 406 Regen/Repaired (Parts) 946 | . . . 164 . . . . . . . . . . . . . . . 16 . . . . . . . . . . . 94 141 226 305 Core Remaining (%) 72 | 100 . 28 . 46 100 . . . . 61 . . . . 80 . . . . 75 . . . . . . 39 . . 100 . 93 . . Volleys Fired 1316 | 22 71 19 105 70 9 120 32 20 . 7 19 27 11 9 23 9 15 8 39 17 58 16 90 28 18 . 9 68 67 15 27 72 50 146 Largest 8 | 2 2 2 3 3 5 5 5 5 . 5 6 6 6 6 6 6 6 6 6 6 6 6 6 6 6 . 6 7 7 7 7 7 8 8 Hottest 373 | 40 60 60 80 69 117 135 135 135 . 131 166 171 240 161 178 168 166 181 186 199 216 209 202 238 342 . 373 215 215 215 215 235 285 348 Shots Fired 6159 | 44 140 27 315 204 45 590 148 100 . 35 109 148 56 54 132 57 89 51 152 99 321 80 520 80 48 . 34 336 388 58 159 379 312 849 Gun 6015 | 44 140 16 315 201 45 588 145 100 . 35 108 147 56 54 132 57 89 51 152 99 321 80 520 72 26 . 20 313 382 55 159 379 307 807 Cannon 105 | . . 6 . . . . . . . . . . . . . . . . . . . . . . 12 . 8 23 6 3 . . 5 42 Launcher 39 | . . 5 . 3 . 2 3 . . . 1 1 . . . . . . . . . . . 8 10 . 6 . . . . . . . Special . | . . . . . . . . . . . . . . . . . . . . . . . . . . . . . . . . . . . Kinetic 5884 | 44 71 14 297 201 45 588 145 100 . 35 108 147 55 54 132 57 89 51 148 99 308 80 520 40 20 . 11 336 382 55 159 379 307 807 Thermal 197 | . 69 8 18 . . . . . . . . . 1 . . . . . . . . . . 16 18 . 11 . 6 3 . . 5 42 Explosive 14 | . . 5 . 3 . 2 3 . . . 1 . . . . . . . . . . . . . . . . . . . . . . . Electromagnetic 31 | . . . . . . . . . . . . 1 . . . . . . . . . . . 8 10 . 12 . . . . . . . Entropic 33 | . . . . . . . . . . . . . . . . . . . 4 . 13 . . 16 . . . . . . . . . . Robot Hit Streak 55 | 6 11 6 20 21 8 36 26 31 . 6 15 16 21 8 7 14 21 8 16 40 18 19 55 17 8 . 7 23 18 4 10 23 8 13 Robot Miss Streak 8 | 3 4 2 8 3 2 4 2 2 . 3 5 3 3 4 4 3 3 3 3 2 4 2 4 3 3 . 6 3 5 6 4 5 5 7 Penetration Max 2 | . . . . . . 1 . . . . 2 2 . 1 1 1 . . 1 1 1 1 2 1 . . . 2 2 . 1 2 1 2 Secondary Targets 169 | . 3 . 4 3 . 17 6 2 . 1 2 5 1 . 5 . 2 3 6 3 8 . 18 4 1 . . 7 7 . 10 19 13 19 Max Gunslinging Chain 2 | . 1 . 1 1 . 2 2 1 . 1 1 2 1 . 2 . 1 2 1 1 1 . 2 1 1 . . 1 2 . 1 2 2 1 Shots Hit Robots 3565 | 27 85 11 205 142 25 398 95 60 . 21 62 97 41 30 65 36 52 31 110 73 186 58 355 50 20 . 12 187 183 20 85 208 130 405 Core Hits 1802 | 14 35 11 75 65 10 170 39 34 . 12 38 51 18 20 66 19 25 12 55 26 94 16 217 33 15 . 8 89 88 11 48 106 80 202 Critical Kills 94 | . . . 1 . . 2 1 1 . . 2 1 . 1 . 2 . 3 5 2 5 1 7 . . . . 5 8 . 10 15 11 11 Critical Parts Destroyed 127 | . . . . 5 . 4 1 2 . . 2 2 1 . 1 1 1 1 9 2 7 . 12 1 . . . 4 18 1 8 13 17 14 Critical Strikes 232 | . . . 1 5 . 6 2 3 . . 4 3 2 1 1 3 1 4 14 6 12 4 19 1 1 . . 9 26 1 18 31 28 26 Burn 1 | . . . . . . . . . . . . . . . . . . . . . . . . . 1 . . . . . . . . . Destroy 228 | . . . 1 5 . 6 2 3 . . 4 3 2 1 1 3 1 4 13 6 11 4 19 . . . . 9 26 1 18 31 28 26 Detonate 3 | . . . . . . . . . . . . . . . . . . . 1 . 1 . . 1 . . . . . . . . . . Melee Attacks 25 | . 2 . 2 . . 1 . . 1 2 3 1 9 . 3 1 . . . . . . . . . . . . . . . . . . Impact 2 | . . . 2 . . . . . . . . . . . . . . . . . . . . . . . . . . . . . . . Slashing . | . . . . . . . . . . . . . . . . . . . . . . . . . . . . . . . . . . . Piercing 20 | . . . . . . . . . 1 2 3 1 9 . 3 1 . . . . . . . . . . . . . . . . . . Sneak Attacks 4 | . 2 . . . . 1 . . . . 1 . . . . . . . . . . . . . . . . . . . . . . . Combat Hostiles . | . . . . . . . . . . . . . . . . . . . . . . . . . . . . . . . . . . . Follow-up Attacks . | . . . . . . . . . . . . . . . . . . . . . . . . . . . . . . . . . . . Damage Inflicted 94511 | 230 878 434 2476 2313 393 7423 1839 1095 . 428 1509 2137 793 727 3200 848 815 578 3124 1827 6075 1875 11644 2268 1037 . 578 4591 6274 424 3765 8510 3875 10528 Guns 87031 | 223 824 102 2436 2221 393 6774 1839 1095 . 393 1432 2128 793 727 1425 830 815 578 2757 1827 5192 1875 10862 1452 311 . 202 4591 6274 424 3765 8115 3875 10481 Cannons 114 | . . . . . . . . . . . . . . . . . . . . . . . . . 70 . . . . . . . . 44 Explosions 6937 | . 28 319 . 35 . 571 . . . . . . . . 1743 . . . 367 . 863 . 768 816 656 . 376 . . . . 395 . . Melee 103 | . . . . . . . . . . 35 68 . . . . . . . . . . . . . . . . . . . . . . . Ramming 326 | 7 26 13 40 57 . 78 . . . . 9 9 . . 32 18 . . . . 20 . 14 . . . . . . . . . . 3 Kinetic 84957 | 223 319 38 2322 2221 393 6774 1839 1095 . 393 1432 2128 793 727 1425 830 815 578 2681 1827 4936 1875 10862 738 168 . . 4591 6274 424 3765 8115 3875 10481 Thermal 3399 | . 505 64 114 . . 571 . . . . . . . . . . . . 367 . 863 . . 468 213 . 190 . . . . . . 44 Explosive 1406 | . . 319 . 35 . . . . . . . . . . . . . . . . . . 657 . . . . . . . . 395 . . Electromagnetic 3446 | . 28 . . . . . . . . . . . . . 1743 . . . . . . . 111 520 656 . 388 . . . . . . . Impact . | . . . . . . . . . . . . . . . . . . . . . . . . . . . . . . . . . . . Slashing . | . . . . . . . . . . . . . . . . . . . . . . . . . . . . . . . . . . . Piercing 103 | . . . . . . . . . . 35 68 . . . . . . . . . . . . . . . . . . . . . . . Entropic 874 | . . . . . . . . . . . . . . . . . . . 76 . 256 . . 542 . . . . . . . . . . Highest Corruption 65 | . . . . . . 2 . . . . . . . 4 4 5 9 9 9 8 2 2 7 7 . . 65 5 11 12 4 10 3 27 Average Corruption 5 | . . . . . . 1 . . . . . . . 2 1 4 8 9 7 8 1 2 4 7 . . 51 2 9 11 3 5 2 7 Corruption Purged 7 | . . . . . . 2 . . . . . . . 5 . . . . . . . . . . . . . . . . . . . . Corruption Blocked . | . . . . . . . . . . . . . . . . . . . . . . . . . . . . . . . . . . . Effects 476 | . . . . . . 21 . . . . . . . 1 8 11 44 43 12 25 12 17 29 13 . . 4 20 67 18 10 36 8 77 Message Errors 88 | . . . . . . 4 . . . . . . . . 1 2 11 5 3 7 2 2 4 3 . . 1 2 14 4 3 8 . 12 Matter Fused 107 | . . . . . . 3 . . . . . . . . 2 1 10 12 3 4 3 4 6 3 . . 2 3 22 6 2 4 2 15 Heat Flow Errors 41 | . . . . . . . . . . . . . . . 1 1 6 1 1 1 3 1 1 1 . . . 6 4 2 1 4 1 6 Energy Discharges 57 | . . . . . . 3 . . . . . . . . 1 3 6 5 1 3 . 5 2 2 . . . 2 7 3 2 5 . 7 Parts Rejected 6 | . . . . . . . . . . . . . . . . . 1 . . . 1 . 3 . . . . . . . . . . 1 Parts Fused 2 | . . . . . . 1 . . . . . . . . . . 1 . . . . . . . . . . . . . . . . . Data Loss (minor) 62 | . . . . . . 5 . . . . . . . 1 . 1 2 12 2 5 2 1 4 1 . . 1 2 8 2 1 4 1 7 Data Loss (major) 30 | . . . . . . 2 . . . . . . . . 2 . 4 4 1 . 1 . 3 2 . . . 1 2 . 1 2 1 4 Misfires 29 | . . . . . . . . . . . . . . . . 3 3 3 . 1 . 4 1 . . . . 1 1 1 . 2 1 8 Alerts 10 | . . . . . . 2 . . . . . . . . . . . 1 . . . . 2 1 . . . 1 1 . . 1 . 1 Misdirections 3 | . . . . . . . . . . . . . . . . . . . . . . . . . . . . . . . . . . 3 Weapon Failures 41 | . . . . . . 1 . . . . . . . . 1 . . . 1 4 . . 3 . . . . 2 8 . . 6 2 13 Overload Shots 1 | . . . . . . . . . . . . . 1 . . . . . . . . . . . . . . . . . . . . . Overflow Damage 484 | . . 38 . . . 107 . . . . . . . . 61 . . . 54 . 111 . 11 48 12 . . . . . . 42 . . Projectiles . | . . . . . . . . . . . . . . . . . . . . . . . . . . . . . . . . . . . Explosions 484 | . . 38 . . . 107 . . . . . . . . 61 . . . 54 . 111 . 11 48 12 . . . . . . 42 . . Melee . | . . . . . . . . . . . . . . . . . . . . . . . . . . . . . . . . . . . Knockbacks 4 | . 1 . 1 . . . . . . . . . . . . . . . . . . . . . 2 . . . . . . . . . Impact 2 | . 1 . 1 . . . . . . . . . . . . . . . . . . . . . . . . . . . . . . . Kinetic 2 | . . . . . . . . . . . . . . . . . . . . . . . . . 2 . . . . . . . . . Secondary . | . . . . . . . . . . . . . . . . . . . . . . . . . . . . . . . . . . . Self-Inflicted Damage 422 | . 34 . . 15 . . . . . . . . . . 96 . . . 85 . . . . 67 . . . . . . . 125 . . Shots 7 | . 1 . . 1 . . . . . . . . . . 1 . . . 1 . . . . 1 . . . . . . . 2 . . Rammed 40 | . 1 5 5 9 . 7 . . . . 1 1 . . 3 3 . . . . 1 . 3 . . . . . . . . . . 1 Targets Rammed 50 | 2 5 5 5 9 . 8 . . . . 1 2 . . 3 3 . . . . 1 . 4 . . . . . . . . . . 2 Kicked 7 | 2 4 . . . . . . . . . . . . . . . . . . . . . . . . . . . . . . . . 1 Crushed 3 | . . . . . . 1 . . . . . 1 . . . . . . . . . . 1 . . . . . . . . . . . Highest Temperature 416 | . 40 58 107 20 48 320 344 256 . 90 167 68 142 24 222 182 247 198 246 404 213 202 368 193 276 . 204 168 383 184 288 354 416 386 Average Temperature 67 | . 13 21 17 6 22 60 77 83 . 38 43 23 25 10 80 76 52 48 48 116 53 44 59 79 143 . 78 52 89 52 64 92 180 88 Received Heat Transfer 4735 | . 144 63 497 326 . 642 403 55 . 7 20 156 . . 63 . 27 . 35 343 120 . 676 262 145 . . 61 25 . 37 122 27 479 Effects 18 | . . . . . . . . . . . . . . . . . . . . . . . 1 . . . . . 1 . . 4 10 2 Shutdowns 4 | . . . . . . . . . . . . . . . . . . . . . . . 1 . . . . . . . . . 2 1 Energy Bleed 6 | . . . . . . . . . . . . . . . . . . . . . . . . . . . . . 1 . . 1 3 1 Interference 3 | . . . . . . . . . . . . . . . . . . . . . . . . . . . . . . . . 2 1 . Matter Decay 2 | . . . . . . . . . . . . . . . . . . . . . . . . . . . . . . . . 1 1 . Short Circuit 2 | . . . . . . . . . . . . . . . . . . . . . . . . . . . . . . . . . 2 . Damage (minor) 1 | . . . . . . . . . . . . . . . . . . . . . . . . . . . . . . . . . 1 . Siege Activations 5 | . . . . . . . . . . . . . . . . . . . . . . 1 4 . . . . . . . . . . . Total Turns 153 | . . . . . . . . . . . . . . . . . . . . . . 44 109 . . . . . . . . . . . Longest Duration 44 | . . . . . . . . . . . . . . . . . . . . . . 44 40 . . . . . . . . . . . Martial Activations . | . . . . . . . . . . . . . . . . . . . . . . . . . . . . . . . . . . . Shielding Activations . | . . . . . . . . . . . . . . . . . . . . . . . . . . . . . . . . . . . Robots Disrupted . | . . . . . . . . . . . . . . . . . . . . . . . . . . . . . . . . . . . Combat Hostiles . | . . . . . . . . . . . . . . . . . . . . . . . . . . . . . . . . . . . Robots Corrupted 11 | . . . . . . . . . . . . . . . 3 . . . . . . . . 3 3 . 2 . . . . . . . Combat Hostiles 8 | . . . . . . . . . . . . . . . . . . . . . . . . 3 3 . 2 . . . . . . . Parts Fried 22 | . . . . . . . . . . . . . . . 13 . . . . . . . 1 2 3 . 2 . 1 . . . . . Impact Corruptions . | . . . . . . . . . . . . . . . . . . . . . . . . . . . . . . . . . . . Robots Melted . | . . . . . . . . . . . . . . . . . . . . . . . . . . . . . . . . . . . Combat Hostiles . | . . . . . . . . . . . . . . . . . . . . . . . . . . . . . . . . . . . Parts Melted 12 | . 1 . . . . 2 . . . . 1 3 . . . . . . 1 . 1 . . . 2 . . . 1 . . . . . Heat Transferred 3994 | . 1150 150 250 . . 350 . . . . . . . . . . . . 150 . 550 . . 535 548 . 274 . . . . . . 37 Parts Sabotaged 3 | . . . . . . . . . . . . . . . . . . . . . . . . . . . . . . . . . . 3 Parts Stolen . | . . . . . . . . . . . . . . . . . . . . . . . . . . . . . . . . . . . Parts Stripped . | . . . . . . . . . . . . . . . . . . . . . . . . . . . . . . . . . . . Power Chain Reactions 2 | . . . . . . . . . . . . . . . . . . . . . . . . . 1 . 1 . . . . . . . Alert | -11 -10 -10 -9 -9 -8 -7 -7 -7 -7 -6 -6 -6 -6 -6 -6 -5 -5 -5 -5 -4 -4 -4 -4 -4 -4 -4 -3 -3 -3 -3 -2 -2 -1 -1 ------- Run | Yrd Mat Min Mat Sto Mat Fac Low Low Zio Pro Fac Ext Cet Arc Hub Fac Upp Upp War Pro Fac Was Fac Upp Upp Zhi Pro Res Arm Lab Res Tes Acc Com Maximum Alert Level 5 | . . . 1 1 . 4 . . . . 1 2 2 1 3 2 . . . . 2 . 5 . . . . 1 3 . 3 5 4 5 Low Security (%) 48 | 100 100 100 55 31 100 57 . . . . 99 54 . 57 50 . . . . . 52 100 27 . . . . 83 24 . 43 . . . Level 1 21 | . . . 44 68 . 14 . . . . . 17 4 42 35 80 . . . . 30 . 16 . . . . 16 15 . 11 35 . . Level 2 10 | . . . . . . 7 . . . . . 27 95 . . 19 . . . . 16 . 8 . . . . . 42 . 33 23 . . Level 3 7 | . . . . . . 13 . . . . . . . . 13 . . . . . . . 14 . . . . . 16 . 11 11 37 21 Level 4 9 | . . . . . . 6 . . . . . . . . . . . . . . . . 25 . . . . . . . . 25 62 65 Level 5 . | . . . . . . . . . . . . . . . . . . . . . . . . . . . . . . . . 3 . 4 High Security . | . . . . . . . . . . . . . . . . . . . . . . . 7 . . . . . . . . . . 8 Max Security . | . . . . . . . . . . . . . . . . . . . . . . . . . . . . . . . . . . . Peak Influence 1847 | 10 135 197 375 344 165 1283 . . . . 200 682 568 358 938 459 . . . . 509 172 1669 . . . . 392 910 . 748 1667 1543 1847 Initial 995 | . . 13 45 152 121 62 . . . . . 56 379 190 . 459 . . . . . 172 . . . . . 150 202 . . 399 995 983 Average 376 | 2 54 150 144 239 121 318 . . . . 100 261 482 162 271 354 . . . . 187 25 691 . . . . 97 451 . 298 773 1222 1302 Influence Increases 22505 | 30 437 284 811 925 251 2025 280 325 . 289 460 1298 368 248 1448 164 275 160 502 270 948 30 2282 310 290 . 90 910 1377 15 981 1768 960 1694 Destroy 0b10 Robot/C 12880 | . 240 160 520 620 100 1340 220 280 . 160 260 620 160 80 360 100 240 140 440 240 540 . 1060 280 240 . 60 460 840 . 540 800 700 1080 Destroy 0b10 Robot/NC 1100 | 30 45 . 50 50 20 120 20 . . 10 65 20 10 20 90 15 . . 5 . 45 . 180 . . . 10 60 25 . 25 75 30 80 Destroy Leader 2448 | . 68 30 154 162 36 332 40 30 . 30 66 56 . . 106 30 30 20 . 30 148 . 224 30 30 . 20 136 128 . 92 146 86 188 Allied During Kill 1749 | . . . . 8 74 75 . . . 89 59 509 170 100 382 1 5 . 42 . . . . . 5 . . . 206 . 24 . . . Trap Triggered on 0b10 10 | . 10 . . . . . . . . . . . . . . . . . . . . . . . . . . . . . . . . . Successful Hack 142 | . 13 11 24 12 4 29 . . . . . 40 . . . . . . . . . . . . . . . . 4 . . . 5 . Select Force Hacks 60 | . 30 . 30 . . . . . . . . . . . . . . . . . . . . . . . . . . . . . . . Disable Machine 1560 | . 30 60 . 15 . 75 . . . . . 15 15 45 360 . . . . . 75 . 360 . . . . 45 105 . 45 240 30 45 Destroy Structure 1881 | . 1 23 3 28 2 39 . . . . 10 8 13 3 150 18 . . . . 140 30 338 . . . . 44 54 . 240 492 79 166 Advance Influence 150 | . . . . . . . . . . . . . . . . . . . . . . . . . . . . 150 . . . . . . Partial Spotted 30 | . . . . 15 . 15 . . . . . . . . . . . . . . . . . . . . . . . . . . . . Lose Combat Pursuer 495 | . . . 30 15 15 . . 15 . . . 30 . . . . . . 15 . . . 120 . 15 . . 15 15 15 15 15 30 135 Influence Decreases 20732 | 30 401 203 565 999 402 880 1171 693 24 289 343 737 569 725 510 793 584 146 267 519 454 524 623 1201 763 295 90 524 856 922 270 820 1082 1458 Entered New Map 6629 | . . 23 72 211 168 76 475 76 24 . . 61 299 287 . 479 115 . 14 249 . 322 . 615 147 295 . . 184 907 . 312 664 554 Time Decay 12207 | 30 401 180 483 598 214 679 676 577 . 252 323 546 270 438 289 294 419 146 100 260 424 202 423 506 586 . 80 514 562 15 250 478 368 624 Lost Part 890 | . . . 10 . . 40 20 40 . . . . . . 10 . 10 . 80 10 20 . 190 80 10 . 10 10 . . . 30 40 280 Lost Ally 856 | . . . . 40 20 85 . . . 37 20 130 . . 211 20 40 . 73 . 10 . 10 . 20 . . . 110 . 20 . 10 . Purge Threat 150 | . . . . 150 . . . . . . . . . . . . . . . . . . . . . . . . . . . . . . Squads Dispatched 117 | . 4 . 1 9 . 19 . . . . 2 3 . . 4 2 . . . . 6 . 13 . . . . 8 5 . 5 12 7 17 Investigation 12 | . 2 . 1 1 . 1 . . . . . 2 . . 1 . . . . . . . 1 . . . . 1 . . . 1 . 1 Extermination 37 | . . . . . . 10 . . . . 1 . . . 1 1 . . . . 3 . 2 . . . . 4 3 . 3 3 2 4 Reinforcement 31 | . 2 . . 3 . 5 . . . . 1 1 . . 1 1 . . . . 2 . 6 . . . . 2 2 . 1 2 2 . Assault 29 | . . . . 2 . 3 . . . . . . . . 1 . . . . . 1 . 1 . . . . . . . 1 5 3 12 Garrison 7 | . . . . 3 . . . . . . . . . . . . . . . . . . 3 . . . . 1 . . . . . . Intercept 1 | . . . . . . . . . . . . . . . . . . . . . . . . . . . . . . . . 1 . . Searches Triggered . | . . . . . . . . . . . . . . . . . . . . . . . . . . . . . . . . . . . Construction Impeded 6 | . . . . . . . . . . . 1 1 . . . . . . . . . . 4 . . . . . . . . . . . Haulers Reinforced 3 | . . . . . . . . . . . . . . . . . . . . . 1 . 1 . . . . . . . . . 1 . Active Scanning Responses . | . . . . . . . . . . . . . . . . . . . . . . . . . . . . . . . . . . . Cargo Convoy Interrupts 1 | . . . . . . . . . . . . . . . . . . . . . . . . . . . . 1 . . . . . . Stealth | -11 -10 -10 -9 -9 -8 -7 -7 -7 -7 -6 -6 -6 -6 -6 -6 -5 -5 -5 -5 -4 -4 -4 -4 -4 -4 -4 -3 -3 -3 -3 -2 -2 -1 -1 --------- Run | Yrd Mat Min Mat Sto Mat Fac Low Low Zio Pro Fac Ext Cet Arc Hub Fac Upp Upp War Pro Fac Was Fac Upp Upp Zhi Pro Res Arm Lab Res Tes Acc Com Distress Signals 31 | . 2 . 5 3 1 . . . . . 1 4 2 . 1 . . . . . . . 1 . 1 . . 2 1 . 1 1 4 1 Communications Jammed 80 | . . . . . . . . . . . . . . . . . . . . . 15 . 52 . . . . . . . 1 12 . . Distress Signals 76 | . . . . . . . . . . . . . . . . . . . . . 12 . 51 . . . . . . . 1 12 . . Times Spotted 847 | . 21 6 51 39 6 78 11 14 . 8 13 28 9 8 27 4 6 7 74 11 30 4 68 15 16 . 5 31 38 3 30 46 36 104 Peak Tracking Total 18 | . 5 3 7 5 3 5 4 6 . 4 3 5 4 1 8 2 4 5 18 4 4 2 8 7 5 . 2 4 4 3 6 6 8 13 Tactical Retreats 22 | . . . 2 1 1 . . 1 . . . 1 . . . . . . 1 . . . 6 . 1 . . 1 1 1 1 1 1 2 Traps | -11 -10 -10 -9 -9 -8 -7 -7 -7 -7 -6 -6 -6 -6 -6 -6 -5 -5 -5 -5 -4 -4 -4 -4 -4 -4 -4 -3 -3 -3 -3 -2 -2 -1 -1 ------- Run | Yrd Mat Min Mat Sto Mat Fac Low Low Zio Pro Fac Ext Cet Arc Hub Fac Upp Upp War Pro Fac Was Fac Upp Upp Zhi Pro Res Arm Lab Res Tes Acc Com Traps Triggered 24 | . 1 . 2 3 . 5 . . . . . 5 . . 1 . . . . . 1 . 2 . . . . . 1 . . . . 3 Indirectly . | . . . . . . . . . . . . . . . . . . . . . . . . . . . . . . . . . . . Trap Hack Attempts 29 | . 29 . . . . . . . . . . . . . . . . . . . . . . . . . . . . . . . . . Triggered . | . . . . . . . . . . . . . . . . . . . . . . . . . . . . . . . . . . . Disarmed . | . . . . . . . . . . . . . . . . . . . . . . . . . . . . . . . . . . . Reprogrammed 2 | . 2 . . . . . . . . . . . . . . . . . . . . . . . . . . . . . . . . . Reused 1 | . 1 . . . . . . . . . . . . . . . . . . . . . . . . . . . . . . . . . Traps Extracted . | . . . . . . . . . . . . . . . . . . . . . . . . . . . . . . . . . . . Installed . | . . . . . . . . . . . . . . . . . . . . . . . . . . . . . . . . . . . Triggered 1 | . 1 . . . . . . . . . . . . . . . . . . . . . . . . . . . . . . . . . Machines | -11 -10 -10 -9 -9 -8 -7 -7 -7 -7 -6 -6 -6 -6 -6 -6 -5 -5 -5 -5 -4 -4 -4 -4 -4 -4 -4 -3 -3 -3 -3 -2 -2 -1 -1 ---------- Run | Yrd Mat Min Mat Sto Mat Fac Low Low Zio Pro Fac Ext Cet Arc Hub Fac Upp Upp War Pro Fac Was Fac Upp Upp Zhi Pro Res Arm Lab Res Tes Acc Com Machines Disabled 113 | . 2 4 1 1 . 5 . . . . . 1 1 3 24 . . . 1 . 5 . 24 . . . . 3 7 3 3 20 2 3 Max in Single Turn 18 | . 2 4 1 1 . 4 . . . . . 1 1 1 18 . . . 1 . 3 . 10 . . . . 1 1 2 1 2 1 1 Network Hub 1 | . . . . . . . . . . . . . . . 1 . . . . . . . . . . . . . . . . . . . Machines Repaired . | . . . . . . . . . . . . . . . . . . . . . . . . . . . . . . . . . . . Machines Dismantled . | . . . . . . . . . . . . . . . . . . . . . . . . . . . . . . . . . . . Machines Sabotaged . | . . . . . . . . . . . . . . . . . . . . . . . . . . . . . . . . . . . Overloaded Fab Kills . | . . . . . . . . . . . . . . . . . . . . . . . . . . . . . . . . . . . Hacking | -11 -10 -10 -9 -9 -8 -7 -7 -7 -7 -6 -6 -6 -6 -6 -6 -5 -5 -5 -5 -4 -4 -4 -4 -4 -4 -4 -3 -3 -3 -3 -2 -2 -1 -1 --------- Run | Yrd Mat Min Mat Sto Mat Fac Low Low Zio Pro Fac Ext Cet Arc Hub Fac Upp Upp War Pro Fac Was Fac Upp Upp Zhi Pro Res Arm Lab Res Tes Acc Com Machines Accessed 80 | . 5 1 10 11 4 13 . . . . 2 11 1 . 1 . . . 5 . 2 . 1 . . 4 . 2 1 . . 3 3 . Terminals 49 | . 4 1 6 11 3 7 . . . . 1 11 1 . . . . . . . . . . . . . . . 1 . . . 3 . Fabricators 2 | . . . . . . 2 . . . . . . . . . . . . . . . . . . . . . . . . . . . . Repair Stations 2 | . . . 1 . . . . . . . . . . . . . . . . . . . . . . . . . . . . 1 . . Recycling Units 8 | . 1 . 1 . . 3 . . . . . . . . . . . . . . 1 . 1 . . . . 1 . . . . . . Scanalyzers 8 | . . . 2 . 1 1 . . . . 1 . . . . . . . . . 1 . . . . . . 1 . . . 1 . . Garrison Access 2 | . . . . . . . . . . . . . . . 1 . . . . . . . . . . . . . . . . 1 . . Total Hacks 182 | . 10 5 24 24 9 26 . . . . 6 25 2 . 2 . . . 10 . 5 . 2 . . 17 . 4 1 . . 5 5 . Successful 100 | . 4 3 17 11 5 12 . . . . 4 6 . . . . . . 10 . 4 . 1 . . 17 . 2 1 . . . 3 . Failed 81 | . 6 2 6 13 4 14 . . . . 2 19 2 . 2 . . . . . 1 . 1 . . . . 2 . . . 5 2 . Catastrophic 15 | . 1 1 1 2 . 1 . . . . . 3 1 . . . . . . . 1 . 1 . . . . . . . . 3 . . Database Lockouts 1 | . . . 1 . . . . . . . . . . . . . . . . . . . . . . . . . . . . . . . Manual 159 | . 10 4 13 17 5 7 . . . . 11 7 1 . 15 3 . . . . 6 . 10 . . . . 8 9 1 7 6 8 11 Terminals 107 | . 9 5 13 24 7 13 . . . . 3 25 2 . . . . . . . . . . . . . . . 1 . . . 5 . Fabricators 5 | . . . . . . 5 . . . . . . . . . . . . . . . . . . . . . . . . . . . . Repair Stations 6 | . . . 5 . . . . . . . . . . . . . . . . . . . . . . . . . . . . 1 . . Recycling Units 13 | . 1 . 1 . . 6 . . . . . . . . . . . . . . 1 . 2 . . . . 2 . . . . . . Scanalyzers 20 | . . . 5 . 2 2 . . . . 3 . . . . . . . . . 4 . . . . . . 2 . . . 2 . . Garrison Access 4 | . . . . . . . . . . . . . . . 2 . . . . . . . . . . . . . . . . 2 . . Terminal Hacks 58 | . 3 3 2 6 2 4 . . . . 1 6 . . . . . . 10 . . . . . . 17 . . 1 . . . 3 . Record 10 | . . . . . . . . . . . . . . . . . . . 5 . . . . . . 5 . . . . . . . . Part Schematic 6 | . 2 . . . . . . . . . . . . . . . . . . . . . . . . 4 . . . . . . . . Robot Analysis 4 | . . . . . . . . . . . . . . . . . . . . . . . . . . 4 . . . . . . . . Prototype ID Bank 12 | . 1 2 1 . . . . . . . . . . . . . . . 4 . . . . . . 4 . . . . . . . . Open Door 17 | . . . . 5 . . . . . . 1 6 . . . . . . 1 . . . . . . . . . 1 . . . 3 . Branch Access Points 2 | . . . 1 . . 1 . . . . . . . . . . . . . . . . . . . . . . . . . . . . Terminal Index 1 | . . . . . . 1 . . . . . . . . . . . . . . . . . . . . . . . . . . . . Scanalyzer Index 1 | . . . . . 1 . . . . . . . . . . . . . . . . . . . . . . . . . . . . . Unreport Threat 1 | . . . . 1 . . . . . . . . . . . . . . . . . . . . . . . . . . . . . . Recall Extermination 1 | . . . . . . 1 . . . . . . . . . . . . . . . . . . . . . . . . . . . . Hauler Manifests 1 | . . . . . 1 . . . . . . . . . . . . . . . . . . . . . . . . . . . . . Zone Layout 2 | . . 1 . . . 1 . . . . . . . . . . . . . . . . . . . . . . . . . . . . Fabricator Hacks 2 | . . . . . . 2 . . . . . . . . . . . . . . . . . . . . . . . . . . . . Load Schematic 1 | . . . . . . 1 . . . . . . . . . . . . . . . . . . . . . . . . . . . . Build 1 | . . . . . . 1 . . . . . . . . . . . . . . . . . . . . . . . . . . . . Repair Station Hacks 4 | . . . 4 . . . . . . . . . . . . . . . . . . . . . . . . . . . . . . . Scan Component 2 | . . . 2 . . . . . . . . . . . . . . . . . . . . . . . . . . . . . . . Repair 2 | . . . 2 . . . . . . . . . . . . . . . . . . . . . . . . . . . . . . . Recycling Unit Hacks 4 | . . . . . . 3 . . . . . . . . . . . . . . . . 1 . . . . . . . . . . . Retrieve Components 4 | . . . . . . 3 . . . . . . . . . . . . . . . . 1 . . . . . . . . . . . Scanalyzer 17 | . . . 4 . 2 2 . . . . 3 . . . . . . . . . 4 . . . . . . 2 . . . . . . Insert Component 2 | . . . 1 . . . . . . . . . . . . . . . . . . . . . . . . 1 . . . . . . Analyze 1 | . . . 1 . . . . . . . . . . . . . . . . . . . . . . . . . . . . . . . Retrieve Study 14 | . . . 2 . 2 2 . . . . 3 . . . . . . . . . 4 . . . . . . 1 . . . . . . Garrison Access Hacks . | . . . . . . . . . . . . . . . . . . . . . . . . . . . . . . . . . . . Unauthorized Hacks 15 | . 1 . 7 5 1 1 . . . . . . . . . . . . . . . . . . . . . . . . . . . . Terminals 12 | . . . 6 5 1 . . . . . . . . . . . . . . . . . . . . . . . . . . . . . Botnet 1 | . . . . . 1 . . . . . . . . . . . . . . . . . . . . . . . . . . . . . Operators 1 | . . . 1 . . . . . . . . . . . . . . . . . . . . . . . . . . . . . . . Skim 10 | . . . 5 5 . . . . . . . . . . . . . . . . . . . . . . . . . . . . . . Fabricators 1 | . . . . . . 1 . . . . . . . . . . . . . . . . . . . . . . . . . . . . Liberate 1 | . . . . . . 1 . . . . . . . . . . . . . . . . . . . . . . . . . . . . Repair Stations . | . . . . . . . . . . . . . . . . . . . . . . . . . . . . . . . . . . . Recycling Units 2 | . 1 . 1 . . . . . . . . . . . . . . . . . . . . . . . . . . . . . . . Tunnel 2 | . 1 . 1 . . . . . . . . . . . . . . . . . . . . . . . . . . . . . . . Scanalyzers . | . . . . . . . . . . . . . . . . . . . . . . . . . . . . . . . . . . . Garrison Access . | . . . . . . . . . . . . . . . . . . . . . . . . . . . . . . . . . . . Data Cores Recovered 2 | . . . . . . . . . . . 1 . . . . . . . . . . . . . . . . . 1 . . . . . Used . | . . . . . . . . . . . . . . . . . . . . . . . . . . . . . . . . . . . Hacking Detections 51 | . 4 1 7 7 2 8 . . . . 2 9 1 . 1 . . . . . 2 . 1 . . . . 2 . . . 3 1 . Full Trace Events 4 | . . . . . . 1 . . . . . 2 . . . . . . . . . . . . . . . . . . . 1 . . Feedback Events . | . . . . . . . . . . . . . . . . . . . . . . . . . . . . . . . . . . . Feedback Blocked . | . . . . . . . . . . . . . . . . . . . . . . . . . . . . . . . . . . . Robot Schematics Acquired 4 | . . . . . . . . . 4 . . . . . . . . . . . . . . . . . . . . . . . . . Robots Built . | . . . . . . . . . . . . . . . . . . . . . . . . . . . . . . . . . . . Authchips . | . . . . . . . . . . . . . . . . . . . . . . . . . . . . . . . . . . . Time . | . . . . . . . . . . . . . . . . . . . . . . . . . . . . . . . . . . . Total Robot Build Rating . | . . . . . . . . . . . . . . . . . . . . . . . . . . . . . . . . . . . Part Schematics Acquired 58 | . 2 . 1 . . . . . 14 . 14 11 . . . . . . . . . . . . . 4 . . . . . 12 . . Parts Built 1 | . . . . . . 1 . . . . . . . . . . . . . . . . . . . . . . . . . . . . Authchips . | . . . . . . . . . . . . . . . . . . . . . . . . . . . . . . . . . . . Time 25 | . . . . . . 25 . . . . . . . . . . . . . . . . . . . . . . . . . . . . Total Part Build Rating 1 | . . . . . . 1 . . . . . . . . . . . . . . . . . . . . . . . . . . . . Part Studies Acquired 14 | . . . 2 . 2 2 . . . . 3 . . . . . . . . . 4 . . . . . . 1 . . . . . . Parts Repaired 2 | . . . 2 . . . . . . . . . . . . . . . . . . . . . . . . . . . . . . . Time 83 | . . . 83 . . . . . . . . . . . . . . . . . . . . . . . . . . . . . . . Parts Recycled . | . . . . . . . . . . . . . . . . . . . . . . . . . . . . . . . . . . . Recycled Matter . | . . . . . . . . . . . . . . . . . . . . . . . . . . . . . . . . . . . Retrieved Matter . | . . . . . . . . . . . . . . . . . . . . . . . . . . . . . . . . . . . Retrieved Components 25 | . . . . . . 22 . . . . . . . . . . . . . . . . 3 . . . . . . . . . . . Parts Scanalyzed 1 | . . . 1 . . . . . . . . . . . . . . . . . . . . . . . . . . . . . . . Part Schematics Acquired 1 | . . . 1 . . . . . . . . . . . . . . . . . . . . . . . . . . . . . . . Parts Damaged . | . . . . . . . . . . . . . . . . . . . . . . . . . . . . . . . . . . . Bothacking | -11 -10 -10 -9 -9 -8 -7 -7 -7 -7 -6 -6 -6 -6 -6 -6 -5 -5 -5 -5 -4 -4 -4 -4 -4 -4 -4 -3 -3 -3 -3 -2 -2 -1 -1 ------------ Run | Yrd Mat Min Mat Sto Mat Fac Low Low Zio Pro Fac Ext Cet Arc Hub Fac Upp Upp War Pro Fac Was Fac Upp Upp Zhi Pro Res Arm Lab Res Tes Acc Com Used RIF Installer . | . . . . . . . . . . . . . . . . . . . . . . . . . . . . . . . . . . . Robots Hacked 3 | . 2 . . . . 1 . . . . . . . . . . . . . . . . . . . . . . . . . . . . Non-combat 3 | . 2 . . . . 1 . . . . . . . . . . . . . . . . . . . . . . . . . . . . Combat . | . . . . . . . . . . . . . . . . . . . . . . . . . . . . . . . . . . . Robot Hacks Applied 3 | . 2 . . . . 1 . . . . . . . . . . . . . . . . . . . . . . . . . . . . parse_system 2 | . 2 . . . . . . . . . . . . . . . . . . . . . . . . . . . . . . . . . find_chute 1 | . . . . . . 1 . . . . . . . . . . . . . . . . . . . . . . . . . . . . Relay Couplers Released . | . . . . . . . . . . . . . . . . . . . . . . . . . . . . . . . . . . . Fabnet Peak Effective % . | . . . . . . . . . . . . . . . . . . . . . . . . . . . . . . . . . . . Robots Rewired 19 | . . . . . . . . . . . . 9 . . . . . . 5 . . . . 2 . . . . 3 . . . . . Allies Hacked 2 | . . . . . . . . . . . 1 . . . . . . . . . . . . . 1 . . . . . . . . . Hacks Repelled . | . . . . . . . . . . . . . . . . . . . . . . . . . . . . . . . . . . . Allies | -11 -10 -10 -9 -9 -8 -7 -7 -7 -7 -6 -6 -6 -6 -6 -6 -5 -5 -5 -5 -4 -4 -4 -4 -4 -4 -4 -3 -3 -3 -3 -2 -2 -1 -1 -------- Run | Yrd Mat Min Mat Sto Mat Fac Low Low Zio Pro Fac Ext Cet Arc Hub Fac Upp Upp War Pro Fac Was Fac Upp Upp Zhi Pro Res Arm Lab Res Tes Acc Com Total Allies 85 | . . . . 12 . 2 . . 7 . 4 19 5 . 5 3 . . 5 . 1 . 1 2 . . . . 17 . 1 . 1 . Largest Group 19 | . . . . 10 10 9 . . 7 7 5 16 19 19 18 3 1 . 5 . 1 . 1 2 2 . . . 12 2 1 . 1 . Highest-Rated Group 1137 | . . . . 88 88 80 . . 231 231 143 657 1137 1132 968 210 70 . 249 . 29 . 28 96 96 . . . 574 95 269 . 27 . Highest-Rated Ally 269 | . . . . 31 16 21 . . 41 41 40 159 159 159 96 70 70 . 68 . 29 . 28 49 49 . . . 81 68 269 . 27 . Zionite Dispatches 13 | . . . . . . . . . . . 2 1 . . 2 1 . . . . 1 . 1 . . . . . 3 . 1 . 1 . Heavy 1 | . . . . . . . . . . . . 1 . . . . . . . . . . . . . . . . . . . . . . Light 1 | . . . . . . . . . . . . . . . . 1 . . . . . . . . . . . . . . . . . . Fire 2 | . . . . . . . . . . . 1 . . . 1 . . . . . . . . . . . . . . . . . . . Hacker 1 | . . . . . . . . . . . . . . . . . . . . . . . . . . . . . 1 . . . . . Experimental 1 | . . . . . . . . . . . . . . . . . . . . . . . . . . . . . . . 1 . . . Kinetic Resupply 2 | . . . . . . . . . . . 1 . . . . . . . . . . . . . . . . . . . . . 1 . Explosive Resupply 1 | . . . . . . . . . . . . . . . . . . . . . . . . . . . . . 1 . . . . . Heavy Resupply 2 | . . . . . . . . . . . . . . . . . . . . . 1 . 1 . . . . . . . . . . . Infowar Resupply 1 | . . . . . . . . . . . . . . . . . . . . . . . . . . . . . 1 . . . . . Hacking Resupply 1 | . . . . . . . . . . . . . . . 1 . . . . . . . . . . . . . . . . . . . Total Orders 43 | . . . . . . . . . . . 1 5 2 . 4 . . . 8 . 1 . 1 . 6 . . . 6 7 1 . 1 . STAY 13 | . . . . . . . . . . . . 2 1 . 1 . . . 2 . . . . . 4 . . . . 3 . . . . ROAM 4 | . . . . . . . . . . . . 1 . . 2 . . . . . . . . . . . . . 1 . . . . . FOLLOW 12 | . . . . . . . . . . . . 2 1 . 1 . . . 1 . . . . . 2 . . . 2 3 . . . . DROP 7 | . . . . . . . . . . . 1 . . . . . . . . . 1 . 1 . . . . . 2 . 1 . 1 . PICKUP 1 | . . . . . . . . . . . . . . . . . . . . . . . . . . . . . . 1 . . . . EXPLORE 4 | . . . . . . . . . . . . . . . . . . . 4 . . . . . . . . . . . . . . . RETURN 2 | . . . . . . . . . . . . . . . . . . . 1 . . . . . . . . . 1 . . . . . Ally Attacks 565 | . . . . 20 28 104 . . . 57 52 88 41 28 54 2 6 . 15 . . . . . 4 . . . 57 2 7 . . . Total Damage 11994 | . . . . 270 217 1384 . . . 747 527 1735 1227 987 1179 . 86 . 331 . . . . . 87 . . . 2283 178 756 . . . Kills 81 | . . . . 1 4 14 . . . 5 6 16 7 4 9 . . . . . . . . . . . . . 12 . 3 . . . Allies Corrupted 11 | . . . . . . 3 . . . . . . . . 5 . . . 1 . . . . . 1 . . . . . 1 . . . Allies Melted 2 | . . . . 1 . . . . . . . . . . . . . . 1 . . . . . . . . . . . . . . . Intel | -11 -10 -10 -9 -9 -8 -7 -7 -7 -7 -6 -6 -6 -6 -6 -6 -5 -5 -5 -5 -4 -4 -4 -4 -4 -4 -4 -3 -3 -3 -3 -2 -2 -1 -1 ------- Run | Yrd Mat Min Mat Sto Mat Fac Low Low Zio Pro Fac Ext Cet Arc Hub Fac Upp Upp War Pro Fac Was Fac Upp Upp Zhi Pro Res Arm Lab Res Tes Acc Com Active Infowar (turns) 49484 | 72 1280 368 2550 1118 386 3964 2641 1772 2130 2433 863 1562 586 1216 758 641 1243 1308 2444 781 1882 1305 1258 1363 1834 390 1717 1621 1664 1195 742 1228 852 2317 Optics 39851 | . . . . . . 3016 2641 1772 2130 2433 863 1562 586 1216 758 641 1243 1308 2444 781 1882 1305 1258 1363 1834 390 1717 1621 1664 1195 742 1228 258 . Sensors 11252 | . . . . . . 1599 491 1644 2130 2433 863 1562 18 . . 510 2 . . . . . . . . . . . . . . . . . Terrain 1599 | . . . . . . . . . . . . . . . . . . . . . . . . . . . . . 130 . 334 653 482 . Seismic 7329 | 72 1280 368 2550 1118 386 . . . . . . . . . . . . . . . 2 . 302 . . . . . . . . . . 1251 Decoding 8152 | . . . . . . . . . . . . . . . . . . . . . . . . . . . . 167 1664 1195 742 1215 852 2317 Machine Analysis 8248 | . . . . . . . . . . . . . . . . . . . . . 1444 1305 1258 1363 1834 390 654 . . . . . . . Cloaking 9544 | . . . . . . . . . . . . . . . . . . . 2 . 978 33 178 1302 1834 380 1703 515 18 . 393 318 740 1150 Jamming 5920 | . . . . . . . . . . . . . 3 . . . . 1 . . 1858 1305 655 . . . . . . . 143 746 . 1209 ECM 1 | . . . . . . . . . . . . . . . . . . . . . . . . . . . . . 1 . . . . . Robot Analysis Total 4 | . . . . . . . . . . . . . . . . . . . . . . . . . . 4 . . . . . . . . Derelict Logs Recovered 14 | . . 1 . . . . 1 1 1 2 . . . . . . 1 1 . . . . . 3 3 . . . . . . . . . Drone Launches 20 | . . . . . . . . . . . . . . . . . . . 17 . . . . . . . . 1 2 . . . . . Drone Recoveries 20 | . . . . . . . . . . . . . . . . . . . 17 . . . . . . . . 1 2 . . . . . Decoded 0b10 Intel 152 | . . . . . . . . . . . . . . . . . . . . . . . . . . . . 5 49 . 21 10 28 39 Garrisons 2 | . . . . . . . . . . . . . . . . . . . . . . . . . . . . . . . . 1 1 . Patrols 95 | . . . . . . . . . . . . . . . . . . . . . . . . . . . . . 36 . 10 2 17 30 Investigations 2 | . . . . . . . . . . . . . . . . . . . . . . . . . . . . . . . . . . 2 Reinforcements 19 | . . . . . . . . . . . . . . . . . . . . . . . . . . . . 2 4 . . 7 6 . Guards 34 | . . . . . . . . . . . . . . . . . . . . . . . . . . . . 3 9 . 11 . 4 7 Zionite Intel Received 13 | . . . . . . . . . . . 1 1 . . 2 . . . . . . . 2 . . . . 1 . . 1 1 1 3 Main Access 1 | . . . . . . . . . . . . . . . . . . . . . . . . . . . . . . . . . . 1 Branch Access 2 | . . . . . . . . . . . . . . . . . . . . . . . . . . . . . . . 1 . 1 . Component Stockpiles 1 | . . . . . . . . . . . . . . . 1 . . . . . . . . . . . . . . . . . . . Prototype Stockpiles 1 | . . . . . . . . . . . . . . . . . . . . . . . 1 . . . . . . . . . . . Component Schematics 2 | . . . . . . . . . . . 1 . . . . . . . . . . . . . . . . . . . . 1 . . Prototype Schematics 1 | . . . . . . . . . . . . 1 . . . . . . . . . . . . . . . . . . . . . . Unaware Analyses 1 | . . . . . . . . . . . . . . . 1 . . . . . . . . . . . . . . . . . . . Active Terminals 2 | . . . . . . . . . . . . . . . . . . . . . . . . . . . . 1 . . . . . 1 Active Garrisons 2 | . . . . . . . . . . . . . . . . . . . . . . . 1 . . . . . . . . . . 1 Exploration | -11 -10 -10 -9 -9 -8 -7 -7 -7 -7 -6 -6 -6 -6 -6 -6 -5 -5 -5 -5 -4 -4 -4 -4 -4 -4 -4 -3 -3 -3 -3 -2 -2 -1 -1 ------------- Run | Yrd Mat Min Mat Sto Mat Fac Low Low Zio Pro Fac Ext Cet Arc Hub Fac Upp Upp War Pro Fac Was Fac Upp Upp Zhi Pro Res Arm Lab Res Tes Acc Com Turns Passed 52075 | 112 1280 368 2579 1905 443 5641 2641 1772 2130 2433 863 1562 586 1216 758 641 1243 1308 2444 781 1882 1305 1258 1363 1834 390 1717 1621 1664 1195 742 1228 852 2318 Spaces Moved 19398 | 41 798 187 1010 672 185 2045 1011 682 882 1042 348 643 229 207 304 237 473 517 773 275 594 458 332 523 627 152 529 593 640 468 270 409 284 958 Core 148 | . . . . . . . . . . . . . . . . . . . . . . . . . . . . . . . . . . 148 Treads 15289 | . 39 187 1010 672 185 2045 1011 682 882 1042 348 643 229 207 304 237 473 517 773 275 593 458 332 523 627 152 529 151 33 121 1 3 2 3 Legs 800 | 41 759 . . . . . . . . . . . . . . . . . . . . . . . . . . . . . . . . . Wheels 3161 | . . . . . . . . . . . . . . . . . . . . . 1 . . . . . . 442 607 347 269 406 282 807 Hover . | . . . . . . . . . . . . . . . . . . . . . . . . . . . . . . . . . . . Flight . | . . . . . . . . . . . . . . . . . . . . . . . . . . . . . . . . . . . Fastest Speed 50 | 120 120 160 160 200 200 205 240 240 240 200 200 200 200 200 200 245 245 245 240 245 250 240 200 210 210 250 250 160 180 180 190 190 170 50 Average Speed 219 | 120 121 160 199 200 201 238 240 240 240 228 206 206 200 200 200 245 245 245 243 255 259 241 232 233 245 250 250 207 188 215 204 208 196 178 Slowest Speed 410 | 120 160 160 200 200 205 370 285 240 240 245 220 240 200 200 240 245 245 245 285 285 260 260 250 250 250 250 290 290 340 290 410 410 410 410 Overloaded Moves . | . . . . . . . . . . . . . . . . . . . . . . . . . . . . . . . . . . . Propulsion Burnouts . | . . . . . . . . . . . . . . . . . . . . . . . . . . . . . . . . . . . Robots Hopped . | . . . . . . . . . . . . . . . . . . . . . . . . . . . . . . . . . . . Potential Cave-ins 8 | . . . . . . . . . . . . . . . . . . . . . . . . . . . . . . . . . . 8 Cave-ins Triggered . | . . . . . . . . . . . . . . . . . . . . . . . . . . . . . . . . . . . Exploration Rate (%) 57 | 3 87 45 79 86 26 62 92 69 90 97 10 79 76 87 44 7 71 80 91 49 25 100 16 67 73 61 57 20 42 94 9 64 12 26 Regions Visited 34 Branch Regions 22 Pre-discovered Areas 15 | . 1 2 3 4 . . . 1 . . . . . . . . . . . . . . . 1 . 3 . . . . . . . . Known Exits Taken 12 | . . . 1 1 1 1 1 . . 1 . . . . . 1 . . . . . . 1 1 . . . . . 1 1 . 1 . Unknown Exits Taken 20 | 1 1 1 . . . . . 1 1 . 1 1 1 1 1 . 1 1 1 1 . . . . 1 1 1 1 1 . . 1 . . Scrap Searched 30 | . . 2 . . . . 5 1 . 4 . . . . . . 3 2 . 2 . . . 5 3 . 3 . . . . . . . Spaces Dug 93 | . . . 2 . . . . . . . 2 1 9 . 3 1 . . 5 . 13 3 . . . . . 5 8 . 7 9 7 18 Terrain Destroyed 1307 | . . 36 2 24 . 36 33 1 . . 6 4 9 . 185 6 9 3 41 29 88 19 191 39 14 . 21 26 32 3 82 252 22 94 Melee 18 | . . . 2 . . . . . . . 2 1 9 . 3 1 . . . . . . . . . . . . . . . . . . Projectile 722 | . . . . . . 2 2 1 . . . 3 . . 12 5 9 3 37 29 61 19 120 30 14 . 8 21 23 1 80 154 7 81 AOE 532 | . . 36 . 24 . 34 31 . . . 4 . . . 170 . . . 4 . 27 . 71 9 . . 13 . . . . 98 11 . Terrain Rammed . | . . . . . . . . . . . . . . . . . . . . . . . . . . . . . . . . . . . Walls Destroyed . | . . . . . . . . . . . . . . . . . . . . . . . . . . . . . . . . . . . Machines Disabled . | . . . . . . . . . . . . . . . . . . . . . . . . . . . . . . . . . . . Actions | -11 -10 -10 -9 -9 -8 -7 -7 -7 -7 -6 -6 -6 -6 -6 -6 -5 -5 -5 -5 -4 -4 -4 -4 -4 -4 -4 -3 -3 -3 -3 -2 -2 -1 -1 --------- Run | Yrd Mat Min Mat Sto Mat Fac Low Low Zio Pro Fac Ext Cet Arc Hub Fac Upp Upp War Pro Fac Was Fac Upp Upp Zhi Pro Res Arm Lab Res Tes Acc Com Total 25983 | 67 981 226 1384 1078 235 2494 1131 764 892 1071 440 806 314 988 399 276 521 541 1273 316 780 621 548 610 892 164 896 814 955 643 398 651 495 1319 Wait 3390 | 1 40 10 173 286 16 227 75 51 . 1 47 44 43 756 42 3 16 4 329 16 53 121 57 3 226 . 328 59 62 86 49 69 51 46 Move 19366 | 40 797 186 1009 671 184 2044 1010 681 881 1041 347 642 228 206 304 236 472 516 772 274 594 457 331 522 626 151 528 592 639 467 269 408 283 958 Hop . | . . . . . . . . . . . . . . . . . . . . . . . . . . . . . . . . . . . Pick Up 226 | 1 7 . 25 1 8 19 . 1 3 2 6 2 4 3 2 2 1 1 17 2 12 1 9 13 5 2 3 14 11 8 3 6 9 23 Fast Attach 257 | 1 1 . 13 5 1 14 . 1 1 3 1 1 2 2 8 5 7 5 17 1 16 5 15 8 6 5 4 7 27 19 6 11 22 17 Attach 129 | . 1 . 6 . 3 8 1 4 . . 2 . 2 3 2 3 1 1 11 1 5 2 16 7 . 1 1 3 . 8 2 9 10 16 Detach 68 | . . . 2 . . 2 . . . . 1 . 2 2 2 3 1 2 5 . 1 3 5 4 . . 1 1 1 9 . 8 5 8 Swap 516 | . 14 5 16 21 5 29 11 6 5 8 7 11 7 3 2 5 2 . 22 2 18 8 10 4 5 . 16 50 35 6 35 52 34 62 Drop 407 | . 14 1 28 15 9 20 2 . 1 7 5 4 6 4 9 6 6 4 23 3 22 8 11 8 6 5 6 20 38 25 7 16 31 37 Fire 1316 | 22 71 19 105 70 9 120 32 20 . 7 19 27 11 9 23 9 15 8 39 17 58 16 90 28 18 . 9 68 67 15 27 72 50 146 Melee 25 | . 2 . 2 . . 1 . . 1 2 3 1 9 . 3 1 . . . . . . . . . . . . . . . . . . Ram . | . . . . . . . . . . . . . . . . . . . . . . . . . . . . . . . . . . . Kick 7 | 2 4 . . . . . . . . . . . . . . . . . . . . . . . . . . . . . . . . 1 Crush 42 | . 1 5 5 9 . 8 . . . . 1 2 . . 2 3 . . . . 1 . 4 . . . . . . . . . . 1 Escape Stasis 16 | . . . . . . 2 . . . . . 10 . . . . . . . . . . . . . . . . . . . . . 4 Rewire 189 | . . . . . . . . . . . 1 62 . . . . . . 38 . . . . 13 . . . . 75 . . . . . Trap 29 | . 29 . . . . . . . . . . . . . . . . . . . . . . . . . . . . . . . . . Miscellaneous . | . . . . . . . . . . . . . . . . . . . . . . . . . . . . . . . . . . . Route ------- -11/Scrapyard -10/Materials (discovered 5 exits: *Mat x3 / *Min / [*Sub]) -10/Mines -9/Materials (discovered 6 exits: *Mat x3 / *Min x2 / *Sto) -9/Storage (discovered 2 exits: *Mat / Rec) -8/Materials (discovered 3 exits: *Fac x3) -7/Factory (discovered 5 exits: *Fac x3 / *Low x2) -7/Lower Caves -7/Lower Caves (discovered 2 exits: *Fac / [*Zio]) -7/Zion -6/Proximity Caves -6/Factory -6/Extension (discovered 2 exits: *Fac / *Cet) -6/Cetus (discovered 2 exits: *Fac / [*Arc]) -6/Archives (discovered 3 exits: *Fac / *Hub x2) -6/Hub_04(d) -5/Factory -5/Upper Caves -5/Upper Caves -5/Warlord -4/Proximity Caves -4/Factory (discovered 3 exits: *Res x2 / Upp) -4/Waste -4/Factory -4/Upper Caves -4/Upper Caves (discovered 2 exits: *Res / *Zhi) -4/Zhirov -3/Proximity Caves -3/Research (discovered 2 exits: Res / *Arm) -3/Armory -3/Lab -2/Research (discovered 3 exits: *Acc / *Tes x2) -2/Testing -1/Access -1/Command (discovered 2 exits: Sur x2) History --------- Turn | Location | Event 14 | -11/Scrapyard | Discovered new exit (range 3) 113 | -11/Scrapyard | Entered Materials 307 | -10/Materials | Build established: Mutant 834 | -10/Materials | Discovered new exit (range 13) 919 | -10/Materials | Core integrity fell below 50% 990 | -10/Materials | Discovered new exit (range 15) 1125 | -10/Materials | Build established: Scavenger-Mutant 1221 | -10/Materials | Discovered new exit (range 6) 1242 | -10/Materials | Discovered new exit (range 5) 1320 | -10/Materials | Discovered new exit (range 8) 1393 | -10/Materials | Entered Mines 1578 | -10/Mines | A weapon hastily lodged in a ceiling crevice suddenly fell to the ground 1649 | -10/Mines | Excavation squad dispatched 1649 | -10/Mines | A large section of the Mines collapsed 1743 | -10/Mines | Learned location of Storage (-9) 1743 | -10/Mines | Discovered new exit (range 7) 1748 | -10/Mines | Found DCF Scrap (12 items) 1761 | -10/Mines | Entered Materials 1761 | -9/Materials | Evolved 2 slots: Utility x1, Weapon x1 2916 | -9/Materials | Discovered new exit (range 5) 2929 | -9/Materials | Build established: Gunner 2941 | -9/Materials | Discovered new exit (range 11) 3011 | -9/Materials | Identified exit to Mines 3011 | -9/Materials | Identified exit to Storage 3101 | -9/Materials | Learned Materials stockpile data 3129 | -9/Materials | Learned Materials stockpile data 3148 | -9/Materials | Learned location of 1 exit from Recycling 3156 | -9/Materials | Identified exit to Materials 3411 | -9/Materials | Build established: Scavenger-Gunner 3462 | -9/Materials | Central database locked down 3724 | -9/Materials | Repaired Autogun+ 3776 | -9/Materials | Repaired Hvy. Ion Engine 4340 | -9/Materials | Entered Storage 4582 | -9/Storage | Destroyed 7 combat bots 4707 | -9/Storage | Met a pair of Derelict thieves 4734 | -9/Storage | Build established: Gunner 4838 | -9/Storage | Learned location of Armory (-3) 5184 | -9/Storage | Build established: Scavenger-Gunner 5204 | -9/Storage | Discovered exit to Materials (range 15) 5539 | -9/Storage | Destroyed 7 combat bots 5755 | -9/Storage | Garrison activated, responded to threat 5765 | -9/Storage | Core integrity fell below 50% 5784 | -9/Storage | Build established: Tank 5890 | -9/Storage | Learned location of Zion (-7) 5942 | -9/Storage | Learned location of 1 exit from Recycling 5955 | -9/Storage | Assisted by bots powering up and referring to "LRC-V3" 5982 | -9/Storage | Learned location of 2 exits from Materials 6041 | -9/Storage | Identified exit to Recycling 6052 | -9/Storage | Learned 2 Storage zone layouts 6074 | -9/Storage | Learned 4 Materials zone layouts 6107 | -9/Storage | Learned Materials security intel 6245 | -9/Storage | Entered Materials 6245 | -8/Materials | Accompanied by 10 allies 6245 | -8/Materials | Evolved 2 slots: Weapon x2 6246 | -8/Materials | Identified exit to Factory 6568 | -8/Materials | Build established: Commander-Gunner 6688 | -8/Materials | Entered Factory 6688 | -7/Factory | Accompanied by 9 allies 6688 | -7/Factory | Evolved 2 slots: Utility x2 6981 | -7/Factory | Lost 6 allies 7470 | -7/Factory | Build established: Gunner 7591 | -7/Factory | Identified exit to Lower Caves 7993 | -7/Factory | Build established: Skirmisher 8033 | -7/Factory | Fabricated Huge Storage Unit (x1) 8319 | -7/Factory | Build established: Gunner 9271 | -7/Factory | Discovered new exit (range 9) 11176 | -7/Factory | Discovered new exit (range 8) 11488 | -7/Factory | First assault squad dispatched 11738 | -7/Factory | Build established: Scavenger-Skirmisher 12264 | -7/Factory | Build established: Scavenger-Gunner 12293 | -7/Factory | Discovered new exit (range 4) 12300 | -7/Factory | Identified exit to Factory 12329 | -7/Factory | Entered Lower Caves 12835 | -7/Lower Caves | Spotted B-75 Beast 12845 | -7/Lower Caves | Destroyed B-75 Beast 13053 | -7/Lower Caves | Attracted the attention of an 0b10 checkpoint 13147 | -7/Lower Caves | Build established: Gunner 13726 | -7/Lower Caves | Discovered new exit (range 10) 13798 | -7/Lower Caves | Learned Factory stockpile data 14968 | -7/Lower Caves | Identified exit to Lower Caves 14970 | -7/Lower Caves | Entered another Lower Caves area 14970 | -7/Lower Caves | Discovered exit to Factory (range 10) 14992 | -7/Lower Caves | Encountered a Warlord checkpoint 15085 | -7/Lower Caves | Attracted the attention of an 0b10 checkpoint 15133 | -7/Lower Caves | Destroyed 7 combat bots 15433 | -7/Lower Caves | Build established: Scavenger-Skirmisher 15650 | -7/Lower Caves | Spotted B-75 Beast 15702 | -7/Lower Caves | Destroyed B-75 Beast 15729 | -7/Lower Caves | Lost 3 parts (1u2w) 16026 | -7/Lower Caves | Build established: Skirmisher 16138 | -7/Lower Caves | Discovered new exit (range 13) 16742 | -7/Lower Caves | Entered Zion 16798 | -7/Zion | Found CR-A16's Pointy Stick 16880 | -7/Zion | Discovered new exit (range 14) 16940 | -7/Zion | Found Prototype Device 16941 | -7/Zion | Identified Mobile Refinery Mk. CCLXVII 17134 | -7/Zion | Learned Factory trap positions 17595 | -7/Zion | Gained Derelict followers 18223 | -7/Zion | Met Imprinter 18261 | -7/Zion | Imprinted 18264 | -7/Zion | Declared Zion's savior 18872 | -7/Zion | Entered Proximity Caves 18872 | -6/Proximity Caves | Accompanied by 7 allies 19668 | -6/Proximity Caves | Learned Factory interactive machine intel 19930 | -6/Proximity Caves | Discovered exit to Factory (range 15) 20285 | -6/Proximity Caves | Build established: Scientist-Skirmisher 20694 | -6/Proximity Caves | Spotted B-75 Beast 20738 | -6/Proximity Caves | Destroyed B-75 Beast 21019 | -6/Proximity Caves | Build established: Skirmisher 21305 | -6/Proximity Caves | Entered Factory 21305 | -6/Factory | Accompanied by 2 allies 21305 | -6/Factory | Evolved 2 slots: Utility x1, Weapon x1 21306 | -6/Factory | Loaded intel: 124 trap records 21308 | -6/Factory | Loaded intel: 54 interactive machine locations 21351 | -6/Factory | Zion Kinetic Resupply teleported in 21758 | -6/Factory | Discovered new exit (range 6) 21931 | -6/Factory | Build established: Scientist-Executioner 21973 | -6/Factory | Retrieved Zion intel report: Component Schematics 21974 | -6/Factory | Zion Fire squad teleported in 22168 | -6/Factory | Entered Extension 22168 | -6/Extension | Accompanied by 4 allies 22480 | -6/Extension | Rescued a captive Derelict 22539 | -6/Extension | Rescued a captive Derelict 22641 | -6/Extension | Retrieved Zion intel report: Prototype Schematics 22642 | -6/Extension | Zion Heavy squad teleported in 22660 | -6/Extension | Rescued a captive Derelict 22661 | -6/Extension | Rescued a captive Derelict 22734 | -6/Extension | Rescued a captive Derelict 22891 | -6/Extension | Build established: Commander-Executioner 22960 | -6/Extension | Spotted B-75 Beast 22973 | -6/Extension | Destroyed B-75 Beast 22977 | -6/Extension | Spotted B-75 Beast 22990 | -6/Extension | Allies destroyed B-75 Beast 23018 | -6/Extension | Lost 8 allies 23068 | -6/Extension | Rescued a captive Derelict 23117 | -6/Extension | Rescued a captive Derelict 23402 | -6/Extension | Terminal network hard line cut 23501 | -6/Extension | Door terminal overloaded 23502 | -6/Extension | Rescued A7 23620 | -6/Extension | Discovered new exit (range 10) 23622 | -6/Extension | Discovered new exit (range 6) 23730 | -6/Extension | Entered Cetus 23730 | -6/Cetus | Accompanied by 14 allies (A7) 23735 | -6/Cetus | Acquired a Cetus Manufacturing Module code from A7 23751 | -6/Cetus | Spotted Cetus Guard 23752 | -6/Cetus | Spotted Cetus Guard 23755 | -6/Cetus | Spotted Cetus Guard 23756 | -6/Cetus | Allies destroyed Cetus Guard 23757 | -6/Cetus | Destroyed Cetus Guard 23758 | -6/Cetus | Spotted Cetus Guard 23761 | -6/Cetus | Destroyed Cetus Guard 23771 | -6/Cetus | Allies destroyed Cetus Guard 23883 | -6/Cetus | Started Cetus Manufacturing Module 23908 | -6/Cetus | Manufactured an Enhanced Grunt 23933 | -6/Cetus | Manufactured an Enhanced Grunt 23958 | -6/Cetus | Manufactured an Enhanced Grunt 23983 | -6/Cetus | Manufactured an Enhanced Grunt 23995 | -6/Cetus | Escorted A7 to Cetus Mainframe 24008 | -6/Cetus | Manufactured an Enhanced Grunt 24009 | -6/Cetus | Discovered new exit (range 22) 24066 | -6/Cetus | Spotted Cetus Guard 24067 | -6/Cetus | Spotted Cetus Guard 24071 | -6/Cetus | Allies destroyed Cetus Guard 24071 | -6/Cetus | Spotted Cetus Guard 24071 | -6/Cetus | Spotted Cetus Guard 24071 | -6/Cetus | Allies destroyed Cetus Guard 24084 | -6/Cetus | Allies destroyed Cetus Guard 24087 | -6/Cetus | Destroyed Cetus Guard 24091 | -6/Cetus | Discovered new exit (range 22) 24113 | -6/Cetus | Scared off Revision 17 24316 | -6/Cetus | Entered Archives 24316 | -6/Archives | Accompanied by 19 allies (A7) 24321 | -6/Archives | Received a hacking code to weaken MAIN.C 24367 | -6/Archives | Discovered new exit (range 21) 24387 | -6/Archives | Discovered new exit (range 22) 24395 | -6/Archives | Discovered new exit (range 20) 25532 | -6/Archives | Entered Hub_04(d) 25532 | -6/Hub_04(d) | Accompanied by 17 allies 25606 | -6/Hub_04(d) | Retrieved Zion intel report: Component Stockpiles 25607 | -6/Hub_04(d) | Zion Hacking Resupply teleported in 25710 | -6/Hub_04(d) | Lost 4 allies 25795 | -6/Hub_04(d) | Zion Fire squad teleported in 25914 | -6/Hub_04(d) | Retrieved Zion intel report: Unaware Analyses 26096 | -6/Hub_04(d) | Discovered new exit (range 13) 26187 | -6/Hub_04(d) | Network Hub disabled 26190 | -6/Hub_04(d) | Spotted Lightning 26191 | -6/Hub_04(d) | Spotted Lightning 26192 | -6/Hub_04(d) | Spotted Lightning 26197 | -6/Hub_04(d) | Destroyed Lightning 26213 | -6/Hub_04(d) | Murdered 6 allies 26218 | -6/Hub_04(d) | Destroyed Lightning 26228 | -6/Hub_04(d) | Lost 9 allies 26232 | -6/Hub_04(d) | First assault squad dispatched 26254 | -6/Hub_04(d) | Found Prototype Device 26254 | -6/Hub_04(d) | Identified Exp. Phase Shifter 26258 | -6/Hub_04(d) | Destroyed Lightning 26265 | -6/Hub_04(d) | Found Prototype Processor 26265 | -6/Hub_04(d) | Identified Exp. Targeting Computer 26290 | -6/Hub_04(d) | Entered Factory 26290 | -5/Factory | Evolved 2 slots: Power x1, Utility x1 26291 | -5/Factory | Identified exit to Upper Caves 26888 | -5/Factory | Zion Light squad teleported in 26931 | -5/Factory | Entered Upper Caves 26931 | -5/Upper Caves | Accompanied by 2 allies 26954 | -5/Upper Caves | Found Prototype Protection 26954 | -5/Upper Caves | Identified Zio. Weapon Casing 26994 | -5/Upper Caves | Build established: Scavenger-Executioner 27694 | -5/Upper Caves | Discovered new exit (range 10) 27837 | -5/Upper Caves | Encountered a Warlord checkpoint 27865 | -5/Upper Caves | Learned location of 1 exit from Factory 28174 | -5/Upper Caves | Entered another Upper Caves area 29042 | -5/Upper Caves | Learned Factory stockpile data 29297 | -5/Upper Caves | Discovered new exit (range 10) 29482 | -5/Upper Caves | Entered Warlord 29563 | -5/Warlord | System corruption cleaned by Quarantine Array 29684 | -5/Warlord | Found Prototype Device 29685 | -5/Warlord | Identified Minesniffer Drone Bay 30090 | -5/Warlord | Learned Armory fabricator intel 30090 | -5/Warlord | Learned Armory repair station intel 30090 | -5/Warlord | Learned 4 Access zone layouts 30090 | -5/Warlord | Learned 4 Command zone layouts 30090 | -5/Warlord | Learned Research trap positions 30725 | -5/Warlord | Visited the Vortex Lab 30732 | -5/Warlord | Warlord's base attacked by MAIN.C 30744 | -5/Warlord | Found Prototype Energy Gun 30744 | -5/Warlord | Identified Vortex Rail 30749 | -5/Warlord | Found Vortex Rail 30888 | -5/Warlord | Found Prototype Reactor 30888 | -5/Warlord | Identified Vortex Chain Reactor 30897 | -5/Warlord | Found Prototype Device 30897 | -5/Warlord | Identified Exp. Cloaking Device 30920 | -5/Warlord | Found Prototype Hackware 30928 | -5/Warlord | Found Prototype Device 30928 | -5/Warlord | Identified System Purifier 31082 | -5/Warlord | Warlord forces counterattacked 31088 | -5/Warlord | Spotted B-75 Beast 31101 | -5/Warlord | Spotted Executioner 31131 | -5/Warlord | Lost 3 allies 31210 | -5/Warlord | Build established: Commander-Executioner 31392 | -5/Warlord | Spotted Executioner 31407 | -5/Warlord | Warlord base infiltrated, sounded retreat 31448 | -5/Warlord | Found Prototype Processor 31448 | -5/Warlord | Identified Exp. Core Analyzer 31448 | -5/Warlord | Spotted Striker 31465 | -5/Warlord | Spotted Executioner 31480 | -5/Warlord | Spotted Executioner 31480 | -5/Warlord | Destroyed Executioner 31515 | -5/Warlord | Lost 5 allies 31538 | -5/Warlord | Spotted Executioner 31568 | -5/Warlord | Spotted Striker 31578 | -5/Warlord | Spotted Executioner 31580 | -5/Warlord | Spotted Executioner 31584 | -5/Warlord | Rebuked by Warlord 31587 | -5/Warlord | Destroyed Striker 31596 | -5/Warlord | Destroyed Executioner 31617 | -5/Warlord | Destroyed 8 combat bots 31629 | -5/Warlord | Lost 4 parts (1u3w) 31657 | -5/Warlord | Spotted Striker 31693 | -5/Warlord | Lost 4 allies 31724 | -5/Warlord | Found Prototype Device 31732 | -5/Warlord | Spotted Striker 31745 | -5/Warlord | Destroyed Striker 31758 | -5/Warlord | Build established: Scavenger-Executioner 31807 | -5/Warlord | Lost 5 allies 31840 | -5/Warlord | Discovered new exit (range 12) 31859 | -5/Warlord | Lost 3 allies 31896 | -5/Warlord | Destroyed Executioner 31914 | -5/Warlord | Found Prototype Device 31914 | -5/Warlord | Identified Adv. Kinecellerator (x2) 31922 | -5/Warlord | Found Exp. Core Analyzer 31926 | -5/Warlord | Entered Proximity Caves 32119 | -4/Proximity Caves | Spotted B-86 Titan 32145 | -4/Proximity Caves | Destroyed B-86 Titan 32647 | -4/Proximity Caves | Discovered new exit (range 11) 32707 | -4/Proximity Caves | Entered Factory 32707 | -4/Factory | Evolved 2 slots: Utility x2 32708 | -4/Factory | Identified exit to Upper Caves 32742 | -4/Factory | Zion Heavy Resupply teleported in 32999 | -4/Factory | Discovered new exit (range 11) 33818 | -4/Factory | Discovered new exit (range 14) 34071 | -4/Factory | Terminal network hard line cut 34457 | -4/Factory | First assault squad dispatched 34589 | -4/Factory | Manually triggered Chute Trap 34589 | -4/Factory | Sucked down chute 34589 | -4/Factory | Entered Waste 34653 | -4/Waste | Spotted C-40 Crusher 34661 | -4/Waste | Destroyed C-40 Crusher 34661 | -4/Waste | Destroyed C-40 Crusher 34687 | -4/Waste | Spotted C-40 Crusher 34702 | -4/Waste | Destroyed C-40 Crusher 34897 | -4/Waste | Destroyed C-40 Crusher 34914 | -4/Waste | Spotted C-40 Crusher 34928 | -4/Waste | Destroyed C-40 Crusher 35011 | -4/Waste | Spotted C-40 Crusher 35013 | -4/Waste | Destroyed C-40 Crusher 35496 | -4/Waste | Discovered new exit (range 22) 35894 | -4/Waste | Entered Factory 36022 | -4/Factory | Retrieved Zion intel report: Prototype Stockpiles 36583 | -4/Factory | Lost 3 parts (1u2w) 36716 | -4/Factory | Garrison activated, responded to threat 36802 | -4/Factory | Destroyed 10 combat bots 36894 | -4/Factory | First assault squad dispatched 36911 | -4/Factory | Retrieved Zion intel report: Active Garrisons 36912 | -4/Factory | Zion Heavy Resupply teleported in 37057 | -4/Factory | Destroyed 7 combat bots 37062 | -4/Factory | High security lockdown imminent 37130 | -4/Factory | Discovered exit to Upper Caves (range 9) 37142 | -4/Factory | High security lockdown engaged 37149 | -4/Factory | Lost 8 parts (1p1n3u3w) 37152 | -4/Factory | Entered Upper Caves 37335 | -4/Upper Caves | Learned Research terminal intel 37356 | -4/Upper Caves | Identified exit to Upper Caves 38005 | -4/Upper Caves | Attracted the attention of an 0b10 outpost 38032 | -4/Upper Caves | Core integrity fell below 50% 38068 | -4/Upper Caves | Lost 6 parts (1p5w) 38319 | -4/Upper Caves | Build established: Scavenger-Gunner 38515 | -4/Upper Caves | Entered another Upper Caves area 38515 | -4/Upper Caves | Accompanied by 2 allies 38516 | -4/Upper Caves | Encountered a Warlord checkpoint 38935 | -4/Upper Caves | Learned Research interactive machine intel 39019 | -4/Upper Caves | Discovered new exit (range 10) 39266 | -4/Upper Caves | Build established: Scavenger-Executioner 40107 | -4/Upper Caves | Learned location of 1 exit from Research 40219 | -4/Upper Caves | Learned Research trap positions 40337 | -4/Upper Caves | Discovered new exit (range 6) 40349 | -4/Upper Caves | Entered Zhirov 40349 | -4/Zhirov | Discovered new exit (range 3) 40394 | -4/Zhirov | Met Zhirov 40439 | -4/Zhirov | Learned location of Quarantine (-3) 40439 | -4/Zhirov | Learned location of Testing (-2) 40439 | -4/Zhirov | Learned location of Command (-1) 40462 | -4/Zhirov | Zhirov requested help retrieving the SGEMP Prototype 40500 | -4/Zhirov | Found Alien Artifact 40500 | -4/Zhirov | Identified Integrated Dissipator 40500 | -4/Zhirov | Installed Integrated Dissipator, increased core heat dissipation (+20) 40610 | -4/Zhirov | Found Alien Artifact 40739 | -4/Zhirov | Entered Proximity Caves 40742 | -3/Proximity Caves | Spotter reported a threat 42327 | -3/Proximity Caves | Discovered new exit (range 22) 42372 | -3/Proximity Caves | System corruption reached 10% 42375 | -3/Proximity Caves | System corruption reached 30% 42456 | -3/Proximity Caves | Entered Research 42456 | -3/Research | Evolved 2 slots: Power x1, Weapon x1 42457 | -3/Research | Identified exit to Research 42458 | -3/Research | Loaded intel: 62 trap records 42459 | -3/Research | Loaded intel: 46 interactive machine locations 42460 | -3/Research | Loaded intel: 23 terminal locations 42787 | -3/Research | Identified System Mapper 43263 | -3/Research | Cargo convoy interrupted 43892 | -3/Research | Retrieved Zion intel report: Active Terminals 43921 | -3/Research | Terminal network hard line cut 43961 | -3/Research | Discovered new exit (range 20) 44029 | -3/Research | Garrison activated, responded to threat 44077 | -3/Research | Entered Armory 44078 | -3/Armory | Loaded intel: 4 fabricator locations 44079 | -3/Armory | Loaded intel: 2 repair station locations 44214 | -3/Armory | Zion Explosive Resupply teleported in 44553 | -3/Armory | Destroyed 11 combat bots 44614 | -3/Armory | System corruption reached 10% 44668 | -3/Armory | Found Prototype Launcher 44668 | -3/Armory | Identified Tactical Quantum Warhead 44823 | -3/Armory | Destroyed 9 combat bots 44842 | -3/Armory | Zion Hacker squad teleported in 44890 | -3/Armory | Found Prototype Hackware 44890 | -3/Armory | Identified Exp. System Shield 45279 | -3/Armory | Lost 3 allies 45393 | -3/Armory | Assisted by bots powering up and referring to "LRC-V3" 45493 | -3/Armory | Zion Infowar Resupply teleported in 45530 | -3/Armory | Terminal network hard line cut 45567 | -3/Armory | Discovered new exit (range 3) 45598 | -3/Armory | Found Prototype Device 45598 | -3/Armory | Identified Exp. Terrain Scanner 45695 | -3/Armory | Build established: Commander-Executioner 45741 | -3/Armory | Entered Lab 45741 | -3/Lab | Accompanied by 2 allies 45741 | -3/Lab | Discovered exit to Research (range 8) 45764 | -3/Lab | Lost 3 allies 45770 | -3/Lab | Unable to decrypt terminal 45770 | -3/Lab | Opened the door to a hidden lab 45771 | -3/Lab | Gained access to the hidden lab's interior 45822 | -3/Lab | Detected by scanners 45825 | -3/Lab | Disabled Active System Cloaker 45837 | -3/Lab | Confronted by A5 45882 | -3/Lab | Destroyed A5 45898 | -3/Lab | Found Prototype Hackware 45973 | -3/Lab | Found Prototype Protection 45973 | -3/Lab | Identified Med. Regenerative Plating 45998 | -3/Lab | Found Prototype Energy Gun 45998 | -3/Lab | Identified Tachyon Dispersion Ray 46033 | -3/Lab | Build established: Scavenger-Executioner 46245 | -3/Lab | Found Alien Artifact 46245 | -3/Lab | Identified Core Reset Matrix 46245 | -3/Lab | Identified Transdimensional Reconstructor 46245 | -3/Lab | Used Core Reset Matrix 46249 | -3/Lab | Sensed 3 artifacts in vicinity 46388 | -3/Lab | Found Integrated Reactor 46388 | -3/Lab | Installed Integrated Reactor, increased core energy generation (+10) 46406 | -3/Lab | Found Core Regenerator 46406 | -3/Lab | Used Core Regenerator, restored core integrity (+112) 46465 | -3/Lab | Found Prototype Hackware 46465 | -3/Lab | Identified Quantum Router 46478 | -3/Lab | Found Prototype Energy Cannon 46519 | -3/Lab | Discovered exit to Research (range 19) 46707 | -3/Lab | Found Transdimensional Reconstructor 46936 | -3/Lab | Entered Research 46936 | -2/Research | Accompanied by 1 ally 46936 | -2/Research | Evolved 2 slots: Utility x2 47110 | -2/Research | Discovered new exit (range 18) 47361 | -2/Research | Discovered new exit (range 17) 47436 | -2/Research | First assault squad dispatched 47488 | -2/Research | Retrieved Zion intel report: Branch Access 47488 | -2/Research | Identified exit to Testing 47489 | -2/Research | Zion Experimental squad teleported in 47544 | -2/Research | Found Prototype Protection 47544 | -2/Research | Identified Zio. Weapon Casing 47678 | -2/Research | Entered Testing 47877 | -2/Testing | Retrieved Zion intel report: Component Schematics 47923 | -2/Testing | Protovariant out of control (PD-NC2Z3OOXCS) 47944 | -2/Testing | Spotted PD-NC2Z3OOXCS 48081 | -2/Testing | Found System Mapper 48178 | -2/Testing | First assault squad dispatched 48520 | -2/Testing | Intercept squad dispatched 48534 | -2/Testing | Spotted Tracker 48535 | -2/Testing | Spotted Tracker 48541 | -2/Testing | Spotted Combat Programmer 48547 | -2/Testing | Destroyed Tracker 48557 | -2/Testing | Spotted Combat Programmer 48559 | -2/Testing | Destroyed Combat Programmer 48562 | -2/Testing | Destroyed Tracker 48565 | -2/Testing | Destroyed Combat Programmer 48586 | -2/Testing | Discovered new exit (range 30) 48728 | -2/Testing | Destroyed 10 combat bots 48850 | -2/Testing | Scanned by Researcher 48854 | -2/Testing | System corruption reached 10% 48906 | -2/Testing | Entered Access 48906 | -1/Access | Evolved 2 slots: Utility x1, Weapon x1 49156 | -1/Access | First assault squad dispatched 49189 | -1/Access | Destroyed 9 combat bots 49322 | -1/Access | Destroyed 8 combat bots 49370 | -1/Access | Retrieved Zion intel report: Branch Access 49370 | -1/Access | Identified exit to Command 49371 | -1/Access | Zion Kinetic Resupply teleported in 49724 | -1/Access | Identified Potential Cannon 49758 | -1/Access | Entered Command 49899 | -1/Command | Retrieved Zion intel report: Active Terminals 50008 | -1/Command | First assault squad dispatched 50178 | -1/Command | Destroyed 7 combat bots 50928 | -1/Command | Retrieved Zion intel report: Main Access 50928 | -1/Command | Identified exit to Surface 50949 | -1/Command | Retrieved Zion intel report: Active Garrisons 51239 | -1/Command | Destroyed 7 combat bots 51313 | -1/Command | Terminal network hard line cut 51826 | -1/Command | Destroyed 8 combat bots 51869 | -1/Command | System corruption reached 10% 51878 | -1/Command | High security lockdown imminent 51910 | -1/Command | Destroyed 8 combat bots 51916 | -1/Command | Lost 7 parts (1p1n2u3w) 51941 | -1/Command | Spotted Combat Programmer 51942 | -1/Command | Spotted Combat Programmer 51951 | -1/Command | Destroyed Combat Programmer 51957 | -1/Command | Spotted M Guard 51958 | -1/Command | High security lockdown engaged 51959 | -1/Command | Spotted M Guard 52009 | -1/Command | Core integrity fell below 50% 52068 | -1/Command | Lost 18 parts (2p2n5u9w) 52069 | -1/Command | Spotted Executioner 52069 | -1/Command | Spotted Executioner 52069 | -1/Command | Spotted Striker 52069 | -1/Command | Spotted Alpha 7 52069 | -1/Command | Spotted Executioner 52069 | -1/Command | Spotted Executioner 52069 | -1/Command | Spotted Striker 52069 | -1/Command | Spotted Alpha 7 52070 | -1/Command | Spotted B-99 Colossus 52072 | -1/Command | Emitted hypermatrix ping 52075 | -1/Command | Core integrity fell below 20% 52075 | -1/Command | Spotted B-99 Colossus 52076 | -1/Command | Destroyed by Striker with Compact Linear Accelerator Last Messages --------------- 52073_ Field strength at 71. 52073_ Penetrated by Slug. 52073_ Slug penetrates Wall. 52073_ Knocked back. 52073_ Triggered Stasis Trap. 52073_ A bubble of rippling energy engulfs the area. 52073_ Field strength at 94. 52074_ Field strength at 88. 52074_ Penetrated by Slug. 52074_ Slug penetrates Wall. 52074_ Slug penetrates Reinforced Barrier. 52075_ Penetrated by Slug. 52075_ Slug penetrates Alpha 7. 52075_ Slug penetrates Wall. 52075_ Field strength at 37. 52075_ 0b10 Decoder Chip [Skirmisher] destroyed. 52075_ Penetrated by Slug. 52075_ Stasis field depleted. 52076_ Penetrated by Slug. Map ----- +----------------------------------------------------+ | """ " #?# #############"# %####+##### | | """ # #?# #???????????## ### ! = ## | | """" # #?# #????????????## ## [ ! = ""% | | """" # #?# #?????????????## # "" ## | | # #?# #??????????????##" """ #### | | # #?# #???????????????## "R / | | * # "#?# #????????????????# !""" ###/ | | #########"%#?# #????????????????# * "" # | | ????????# "#?# #????????????????# = # | | ????????# #?# #????????????????# " | | ????????# #?# #???? ???????????########## | | ????????# #?#######????? ??